{"text_format":"1","workbook":"xlsx","n_sheets":13,"sheets":["Single Image","Video","Slideshow","Carousel","Multiple Text Options","Dynamic Creative","Offers","Instant Experiences - SB","Instant Experiences- GNC","Lead Form","Messenger - Start Conversation ","Dynamic Ads (Catalog) Carousel","Sheet1"],"not_rendered":{"charts":0,"images":29,"macros":1,"external_links":1,"defined_names":10,"comments":6,"pivot_tables":0},"unopened":[],"bounds":{"document_bytes":16777216,"sheet_cells":100000,"rows_first":2000,"rows_last":500,"rows_between":2000,"halvings":0,"cell_chars":16384,"cell_head_chars":4096},"cells_cut":0,"cells_raw":0,"read":"whole","date_system":"1900"}

{"sheet":"Single Image","index":0,"n_rows":87,"n_cols":10,"rows_kept":87,"cut":false,"hidden":false,"merged":[[59,0,59,8],[60,0,60,1],[60,3,60,7],[59,9,60,16],[46,0,46,1],[47,0,47,1],[49,0,49,1],[49,3,49,8],[46,3,46,8],[47,3,47,8],[48,3,48,8],[48,0,48,1],[53,9,53,16],[54,9,54,16],[53,0,55,1],[53,3,55,8],[45,4,45,7],[42,0,42,1],[42,3,42,7],[43,0,43,10],[41,0,41,8],[41,9,42,16],[56,0,58,1],[56,2,58,2],[56,3,58,8],[50,0,52,1],[50,2,52,2],[50,3,52,7],[50,8,52,8],[53,2,55,2],[8,3,8,7],[9,0,10,1],[9,3,17,8],[14,0,18,1],[24,4,24,7],[19,3,19,7],[20,3,20,4],[21,3,21,4],[22,3,22,4],[20,5,20,7],[21,5,21,7],[22,5,22,7],[32,18,35,23],[25,0,25,1],[25,3,25,7],[35,0,35,1],[35,3,35,7],[34,0,34,1],[34,3,34,7],[26,0,28,1],[26,2,28,2],[26,3,28,7],[26,8,28,8],[33,0,33,1],[33,3,33,7],[29,0,29,1],[29,3,29,7],[31,0,31,1],[37,0,37,1],[37,3,37,7],[11,11,18,16],[38,0,38,8],[39,0,39,1],[39,3,39,7],[36,0,36,1],[36,3,36,7],[39,9,40,16],[31,3,31,7],[30,3,30,7],[30,0,30,1],[32,0,32,8],[40,0,40,1],[40,3,40,7]]}
[]
[]
[]
[]
[]
[]
[]
["Rules and Regulations"]
["Facebook Ad Guidelines",null,null,"Advertiser Access"]
["Ensure that your ads comply with all applicable laws, statutes, and regulations.",null,null,"Providing admin is a standard process that protects a brand from fraud by assigning an ‘Advertiser’ label to those who manage paid ads on a client’s behalf. As such, Ignite must be given the necessary permission to promote a client's Facebook page. To do so, Ignite will send a request to the specified Facebook Page and the managers of the Page will receive a notification allowing them to ‘accept’ or ‘decline’ this request."]
[]
["Read more here"]
[]
["Text Image Rule"]
["To ensure people only see high-quality content, images in your ads cannot include any text. This includes logos and slogans in images. "]
[]
[]
[]
[null,null,null,"Read more here"]
[null,null,null,"Client Advertiser Access: Contact information for reporting "]
[null,null,null,"First Name:",null,"John "]
[null,null,null,"Last Name:",null,"Smith"]
[null,null,null,"Email: ",null,"john.smith@example.com"]
["Single Image - Link Click / Awareness"]
["Section",null,"Required Specs",null,"Must fill out below fields:",null,null,null,"Remaining Characters"]
["Name of ad\nUsed for reference purposes only"]
["Post Text\nEnter text that clearly tells people about what you're promoting",null,"125 characters",null,null,null,null,null,{"$f":"125-LEN(D27)","v":125}]
[]
[]
["Name of Image\nCompelling images and videos encourage your target audiences to engage.",null,"1080x1080 pixels (Image ratio: 1.91:1 to 1:1)"]
["Is the single image in a clear 1080x1080 resolution?",null,"1080x1080 pixels (Image ratio: 1.91:1 to 1:1)"]
["URL of Facebook Page\nThe name of your business always shows prominently."]
["* STOP HERE IF RUNNING AWARENESS WITH AD THAT DRIVES TO FACEBOOK PAGE (INSTEAD OF WEBSITE), OTHERWISE CONTINUE"]
["**Headline\nDescribes Link",null,"40 characters",null,null,null,null,null,{"$f":"40-LEN(D34)","v":40}]
["**Newsfeed Link Description\nFurther describes the content of the link being promoted. Only shows in News Feed.",null,30,null,null,null,null,null,{"$f":"30-(LEN(D35))","v":30}]
["**Website Destination URL\nDestination URL that you want to promote. "]
["**Display link\nWill show a shorter URL. MUST have same domain as Website Destination URL."]
["**Call To Action                                                                          \nPlease select one from the drop-down menu at right",null,"Select in drop down menu","No Button"]
["Include Call Extension?"]
["Include Call Extension?",null,null,null,null,null,null,null,null,"After user clicks through to the website, a call extension appears at the bottom of the screen with a Call button. After someone taps the Call button, the call dialer opens on their device, prefilled with the number you set as the destination. They are then prompted to call, but can still exit out of the screen."]
["Phone Number"]
["Only for political campaigns",null,null,null,null,null,null,null,null,"Please note:  when running a political campaign please be advised of the 2-3 week verification process"]
["Disclaimer\n(Your disclaimer must accurately represent the name of the entity or person responsible for the ad. Please see  here for guidelines. (https://www.facebook.com/business/help/198009284345835)",null,360,null,null,null,null,null,{"$f":"360-(LEN(D43))","v":360}]
[]
["Single Image - Post Engagement "]
["Section",null,"Required Specs",null,"Must fill out below fields:",null,null,null,"Remaining Characters"]
["Name of ad\nUsed for reference purposes only"]
["Name of Image\nCompelling images and videos encourage your target audiences to engage.",null,"1080x1080 pixels (Image ratio: 1.91:1 to 1:1)"]
["Is the single image in a clear 1080x1080 resolution?",null,"1080x1080 pixels (Image ratio: 1.91:1 to 1:1)"]
["URL of Facebook Page\nThe name of your business always shows prominently."]
["Post Text\nEnter text that clearly tells people about what you're promoting",null,"125 characters",null,null,null,null,null,{"$f":"125-LEN(D51)","v":125}]
[]
[]
["**Call To Action (Optional)\nCan add button at bottom of post - drives to desired action ",null,"Select From Drop Down",null,null,null,null,null,null,"**If No Button - No CTA button appended to button of post"]
[null,null,null,null,null,null,null,null,null,"**If Send Message - Button opens Messenger when clicked"]
[]
["Website URL\nOnly complete if CTA is \"Learn More\" / \"Shop Now\"",null,"URL where button will drive"]
[]
[]
["Only for political campaigns",null,null,null,null,null,null,null,null,"Please note:  when running a political campaign please be advised of the 2-3 week verification process"]
["Disclaimer\n(Your disclaimer must accurately represent the name of the entity or person responsible for the ad. Please see  here for guidelines. (https://www.facebook.com/business/help/198009284345835)",null,360,null,null,null,null,null,{"$f":"360-(LEN(D61))","v":360}]
[]
[]
[]
["No Button"]
["Get Quote"]
["Get Showtimes"]
["Listen Now"]
["Request Time"]
["See Menu"]
["Shop Now"]
["Sign Up"]
["Subscribe"]
["Watch More"]
["Learn More"]
["Apply Now"]
["Book Now"]
["Contact Us"]
["Donate Now"]
["Download"]
["Get Offer"]
[]
["No Button"]
["Get Quote"]
["Learn More"]
["Send Message"]
["Shop Now"]

{"sheet":"Video","index":1,"n_rows":62,"n_cols":10,"rows_kept":62,"cut":false,"hidden":false,"merged":[[40,9,41,16],[42,9,43,15],[60,9,61,15],[42,0,42,8],[43,0,43,1],[43,3,43,7],[60,0,60,8],[61,0,61,1],[61,3,61,7],[48,0,48,1],[48,3,48,7],[54,9,54,15],[55,9,55,15],[57,0,59,1],[57,2,59,2],[51,0,53,1],[51,2,53,2],[33,0,33,8],[35,0,35,1],[57,3,59,8],[50,3,50,7],[35,3,35,7],[38,0,38,1],[51,8,53,8],[49,0,49,1],[49,3,49,7],[50,0,50,1],[54,0,56,1],[54,2,56,2],[54,3,56,8],[45,4,45,7],[46,0,46,1],[46,3,46,7],[51,3,53,7],[34,0,34,1],[34,3,34,7],[36,0,36,1],[38,3,38,7],[37,0,37,1],[37,3,37,7],[36,3,36,7],[47,0,47,1],[47,3,47,7],[47,2,48,2],[39,0,39,8],[40,0,40,1],[40,3,40,7],[41,0,41,1],[41,3,41,7],[20,5,20,7],[21,3,21,4],[21,5,21,7],[8,3,8,7],[25,0,25,1],[25,3,25,7],[9,0,10,1],[9,3,17,8],[14,0,18,1],[22,3,22,4],[22,5,22,7],[19,3,19,7],[20,3,20,4],[24,4,24,7],[28,18,31,23],[9,10,12,15],[15,10,22,15],[30,8,32,8],[28,0,28,1],[28,3,28,7],[26,0,26,1],[26,3,26,7],[30,0,32,1],[30,2,32,2],[30,3,32,7],[29,0,29,1],[29,3,29,7],[27,0,27,1],[27,3,27,7],[26,2,27,2]]}
[]
[]
[]
[]
[]
[]
[]
["Rules and Regulations"]
["Facebook Ad Guidelines",null,null,"Advertiser Access"]
["Ensure that your ads comply with all applicable laws, statutes, and regulations.",null,null,"Providing admin is a standard process that protects a brand from fraud by assigning an ‘Advertiser’ label to those who manage paid ads on a client’s behalf. As such, Ignite must be given the necessary permission to promote a client's Facebook page. To do so, Ignite will send a request to the specified Facebook Page and the managers of the Page will receive a notification allowing them to ‘accept’ or ‘decline’ this request."]
[]
["Read more here"]
[]
["Text Image Rule"]
["To ensure people only see high-quality content, images in your ads cannot include any text. This includes logos and slogans in images. "]
[]
[]
[]
[null,null,null,"Read more here"]
["Last Updated: 7/23/19",null,null,"Client Advertiser Access: Contact information for reporting "]
[null,null,null,"First Name:",null,"John "]
[null,null,null,"Last Name:",null,"Smith"]
[null,null,null,"Email: ",null,"john.smith@example.com"]
["Single Video - Link Click / Awareness"]
["Section",null,"Required Specs",null,"Must fill out below fields:",null,null,null,"Remaining Characters"]
["Name of ad\nUsed for reference purposes only"]
["Video\nTell a story using a video. ",null,"Recommended:\n864x1080pixels\n4:5 Ratio (Vertical)\n15 Seconds\n\nStill Accept:\n1080x1080 pixels\n1:1 Ratio (Square)\nMP4, MOV files are recommended*\nMax Video Length: 60 seconds for Instagram, 120 minutes for Facebook"]
["Is the video in a clear 1080x1080resolution, under 2.3GB, in a MOV or MP4? "]
["Name of Thumbnail Image (optional)\n A thumbnail image will show on your ad when the video is not playing",null,"1200 x 675 pixels\nRatio: 16:9"]
["URL of Facebook Page\nThe name of your business always shows prominently."]
["Post Text\nEnter text that clearly tells people about what you're promoting",null,"125 characters",null,null,null,null,null,{"$f":"125-LEN(D31)","v":125}]
[]
[]
["* STOP HERE IF RUNNING AWARENESS WITH AD THAT DRIVES TO FACEBOOK PAGE (INSTEAD OF WEBSITE, OTHERWISE CONTINUE"]
["Website Destination URL\nDestination URL that you want to promote. "]
["Display link\nWill show a shorter URL. MUST have same domain as Website Destination URL."]
["Headline\nDescribes Link",null,"40 characters",null,null,null,null,null,{"$f":"40-LEN(D37)","v":40}]
["Newsfeed Link Description\nFurther describes the content of the link being promoted. Only shows in News Feed.",null,"30 characters",null,null,null,null,null,{"$f":"30-(LEN(D38))","v":30}]
["Call To Action                                                                          \nPlease select one from the drop-down menu at right",null,"Select in drop down menu"]
["Include Call Extension?"]
["Include Call Extension?",null,null,null,null,null,null,null,null,"After user clicks through to the website, a call extension appears at the bottom of the screen with a Call button. After someone taps the Call button, the call dialer opens on their device, prefilled with the number you set as the destination. They are then prompted to call, but can still exit out of the screen."]
["Phone Number"]
["Only for political campaigns",null,null,null,null,null,null,null,null,"Please note:  when running a political campaign please be advised of the 2-3 week verification process"]
["Disclaimer\n(Your disclaimer must accurately represent the name of the entity or person responsible for the ad. Please see  here for guidelines. (https://www.facebook.com/business/help/198009284345835)",null,360,null,null,null,null,null,{"$f":"360-(LEN(D44))","v":360}]
["Single Video - Post Engagement "]
["Section",null,"Required Specs",null,"Must fill out below fields:",null,null,null,"Remaining Characters"]
["Name of ad\nUsed for reference purposes only"]
["Video\nTell a story using a video. ",null,"Recommended:\n864x1080 pixels\n4:5 Ratio (Vertical)\n15 Seconds\n\nStill Accept:\n1080x1080 pixels\n1:1 Ratio (Square)\nMP4, MOV files are recommended*\nMax Video Length: 60 seconds for Instagram, 120 minutes for Facebook"]
["Is the video in a clear 1080x1080resolution, under 2.3GB, in a MOV or MP4?"]
["Name of Thumbnail Image (optional)\n A thumbnail image will show on your ad when the video is not playing",null,"1200 x 675 pixels\nRatio: 16:9"]
["URL of Facebook Page\nThe name of your business always shows prominently."]
["Post Text\nEnter text that clearly tells people about what you're promoting",null,"90 characters",null,null,null,null,null,{"$f":"90-LEN(D52)","v":90}]
[]
[]
["**Call To Action (Optional)\nCan add button at bottom of post - drives to desired action ",null,"Select From Drop Down",null,null,null,null,null,null,"**If No Button - No CTA button appended to button of post"]
[null,null,null,null,null,null,null,null,null,"**If Send Message - Button opens Messenger when clicked"]
[]
["Website URL\nOnly complete if CTA is \"Learn More\" / \"Shop Now\"",null,"URL where button will drive"]
[]
[]
["Only for political campaigns",null,null,null,null,null,null,null,null,"Please note:  when running a political campaign please be advised of the 2-3 week verification process"]
["Disclaimer\n(Your disclaimer must accurately represent the name of the entity or person responsible for the ad. Please see  here for guidelines. (https://www.facebook.com/business/help/198009284345835)",null,360,null,null,null,null,null,{"$f":"360-(LEN(D62))","v":360}]

{"sheet":"Slideshow","index":2,"n_rows":63,"n_cols":10,"rows_kept":63,"cut":false,"hidden":false,"merged":[[40,9,41,16],[39,0,39,8],[40,0,40,1],[40,3,40,7],[41,0,41,1],[41,3,41,7],[61,9,62,15],[42,9,43,15],[42,0,42,8],[43,0,43,1],[43,3,43,7],[61,0,61,8],[62,0,62,1],[62,3,62,7],[52,3,54,7],[46,4,46,7],[47,0,47,1],[47,3,47,7],[48,0,48,1],[48,3,48,7],[49,0,49,1],[49,3,49,7],[52,8,54,8],[50,0,50,1],[50,3,50,7],[51,0,51,1],[51,3,51,7],[52,0,54,1],[52,2,54,2],[55,9,55,15],[56,9,56,15],[58,0,60,1],[58,2,60,2],[58,3,60,8],[55,0,57,1],[55,2,57,2],[55,3,57,8],[27,3,27,7],[37,0,37,1],[37,3,37,7],[38,0,38,1],[38,3,38,7],[34,0,34,1],[34,3,34,7],[35,0,35,1],[35,3,35,7],[36,0,36,1],[36,3,36,7],[33,0,33,8],[19,3,19,7],[20,3,20,4],[20,5,20,7],[30,8,32,8],[25,0,25,1],[25,3,25,7],[26,0,26,1],[26,3,26,7],[28,0,28,1],[28,3,28,7],[29,0,29,1],[29,3,29,7],[30,0,32,1],[30,2,32,2],[30,3,32,7],[27,0,27,1],[24,4,24,7],[21,3,21,4],[21,5,21,7],[22,3,22,4],[22,5,22,7],[11,11,18,16],[8,3,8,7],[9,0,10,1],[9,3,17,8],[14,0,18,1]]}
[]
[]
[]
[]
[]
[]
[]
["Rules and Regulations"]
["Facebook Ad Guidelines",null,null,"Advertiser Access"]
["Ensure that your ads comply with all applicable laws, statutes, and regulations.",null,null,"Providing admin is a standard process that protects a brand from fraud by assigning an ‘Advertiser’ label to those who manage paid ads on a client’s behalf. As such, Ignite must be given the necessary permission to promote a client's Facebook page. To do so, Ignite will send a request to the specified Facebook Page and the managers of the Page will receive a notification allowing them to ‘accept’ or ‘decline’ this request."]
[]
["Read more here"]
[]
["Text Image Rule"]
["To ensure people only see high-quality content, images in your ads cannot include any text. This includes logos and slogans in images. "]
[]
[]
[]
[null,null,null,"Read more here"]
["Last Updated: 7/23/19",null,null,"Client Advertiser Access: Contact information for reporting "]
[null,null,null,"First Name:",null,"John "]
[null,null,null,"Last Name:",null,"Smith"]
[null,null,null,"Email: ",null,"john.smith@example.com"]
["Slideshow (upload 3 - 10 Images or a video asset) - Link Click / Awareness"]
["Section",null,"Required Specs",null,"Must fill out below fields:",null,null,null,"Remaining Characters"]
["Name of ad\nUsed for reference purposes only"]
["Video or Images\nTell a story using a video. ",null,"1080x1080 pixels (minimum 1280x720)\nImage ratio: 16:9, 1:1\nVideo format: MP4 or MOV recommended (Max video length of slideshow: 50 seconds)"]
["Are the assets in a clear 1080x1080 resolution and in the correct specs?",null,"1080x1080 pixels (minimum 1280x720)\nImage ratio: 16:9, 1:1\nVideo format: MP4 or MOV recommended (Max video length of slideshow: 50 seconds)"]
["Name of Thumbnail Image (optional)\n A thumbnail image will show on your ad when the video is not playing",null,"Should be same pixels and Aspect Ratio as images or video asset (16:9, 1:1)"]
["URL of Facebook Page\nThe name of your business always shows prominently."]
["Post Text\nEnter text that clearly tells people about what you're promoting",null,"125 characters",null,null,null,null,null,{"$f":"125-LEN(D31)","v":125}]
[]
[]
["* STOP HERE IF RUNNING AWARENESS WITH AD THAT DRIVES TO FACEBOOK PAGE (INSTEAD OF WEBSITE), OTHERWISE CONTINUE"]
["Website Destination URL\nDestination URL that you want to promote. "]
["Display link\nWill show a shorter URL. MUST have same domain as Website Destination URL."]
["Headline\nDescribes Link",null,"40 characters",null,null,null,null,null,{"$f":"40-LEN(D37)","v":40}]
["Newsfeed Link Description\nFurther describes the content of the link being promoted. Only shows in News Feed.",null,"30 characters",null,null,null,null,null,{"$f":"30-(LEN(D38))","v":30}]
["Call To Action                                                                          \nPlease select one from the drop-down menu at right",null,"Select in drop down menu"]
["Include Call Extension?"]
["Include Call Extension?",null,null,null,null,null,null,null,null,"After user clicks through to the website, a call extension appears at the bottom of the screen with a Call button. After someone taps the Call button, the call dialer opens on their device, prefilled with the number you set as the destination. They are then prompted to call, but can still exit out of the screen."]
["Phone Number"]
["Only for political campaigns",null,null,null,null,null,null,null,null,"Please note:  when running a political campaign please be advised of the 2-3 week verification process"]
["Disclaimer\n(Your disclaimer must accurately represent the name of the entity or person responsible for the ad. Please see  here for guidelines. (https://www.facebook.com/business/help/198009284345835)",null,360,null,null,null,null,null,{"$f":"360-(LEN(D44))","v":360}]
[]
["Slideshow (upload 3 - 10 Images or a video asset) - Post Engagement "]
["Section",null,"Required Specs",null,"Must fill out below fields:",null,null,null,"Remaining Characters"]
["Name of ad\nUsed for reference purposes only"]
["Video or Images\nTell a story using a video. ",null,"1080x1080 pixels (minimum 1280x720)\nImage ratio: 16:9, 1:1\nVideo format: MP4 or MOV recommended (Max video length of slideshow: 50 seconds)"]
["Are the assets in a clear 1080x1080 resolution and in the correct specs?",null,"1080x1080 pixels (minimum 1280x720)\nImage ratio: 16:9, 1:1\nVideo format: MP4 or MOV recommended (Max video length of slideshow: 50 seconds)"]
["Name of Thumbnail Image (optional)\n A thumbnail image will show on your ad when the video is not playing",null,"Should be same pixels and Aspect Ratio as images or video asset (16:9, 1:1)"]
["URL of Facebook Page\nThe name of your business always shows prominently."]
["Post Text\nEnter text that clearly tells people about what you're promoting",null,"125 characters",null,null,null,null,null,{"$f":"125-LEN(D53)","v":125}]
[]
[]
["**Call To Action (Optional)\nCan add button at bottom of post - drives to desired action ",null,"Select From Drop Down",null,null,null,null,null,null,"**If No Button - No CTA button appended to button of post"]
[null,null,null,null,null,null,null,null,null,"**If Send Message - Button opens Messenger when clicked"]
[]
["Website URL\nOnly complete if CTA is \"Learn More\" / \"Shop Now\"",null,"URL where button will drive"]
[]
[]
["Only for political campaigns",null,null,null,null,null,null,null,null,"Please note:  when running a political campaign please be advised of the 2-3 week verification process"]
["Disclaimer\n(Your disclaimer must accurately represent the name of the entity or person responsible for the ad. Please see  here for guidelines. (https://www.facebook.com/business/help/198009284345835)",null,360,null,null,null,null,null,{"$f":"360-(LEN(D63))","v":360}]

{"sheet":"Carousel","index":3,"n_rows":102,"n_cols":10,"rows_kept":102,"cut":false,"hidden":false,"merged":[[40,9,41,13],[28,0,28,1],[28,3,28,7],[90,3,90,7],[90,0,90,1],[89,0,89,8],[87,0,87,1],[87,3,87,7],[94,3,94,7],[94,0,94,1],[93,3,93,7],[93,0,93,1],[92,3,92,7],[92,0,92,1],[91,3,91,7],[91,0,91,1],[84,0,84,1],[84,3,84,7],[85,0,85,1],[85,3,85,7],[86,0,86,1],[86,3,86,7],[79,0,79,1],[79,3,79,7],[80,0,80,1],[80,3,80,7],[82,0,82,8],[83,0,83,1],[83,3,83,7],[75,0,75,8],[76,0,76,1],[76,3,76,7],[77,0,77,1],[77,3,77,7],[78,0,78,1],[78,3,78,7],[71,0,71,1],[71,3,71,7],[72,0,72,1],[72,3,72,7],[73,0,73,1],[73,3,73,7],[66,0,66,1],[66,3,66,7],[68,0,68,8],[69,0,69,1],[69,3,69,7],[70,0,70,1],[70,3,70,7],[63,0,63,1],[63,3,63,7],[64,0,64,1],[64,3,64,7],[65,0,65,1],[65,3,65,7],[58,0,58,1],[58,3,58,7],[59,0,59,1],[59,3,59,7],[61,0,61,8],[62,0,62,1],[62,3,62,7],[54,0,54,8],[55,0,55,1],[55,3,55,7],[56,0,56,1],[56,3,56,7],[57,0,57,1],[57,3,57,7],[50,0,50,1],[50,3,50,7],[51,0,51,1],[51,3,51,7],[52,0,52,1],[52,3,52,7],[45,0,45,1],[45,3,45,7],[46,0,46,1],[46,3,46,7],[48,0,48,8],[49,0,49,1],[49,3,49,7],[38,0,38,1],[38,3,38,7],[43,0,43,1],[43,3,43,7],[44,0,44,1],[44,3,44,7],[40,0,40,8],[41,0,41,1],[41,3,41,7],[42,0,42,8],[39,0,39,1],[39,3,39,7],[34,0,34,1],[34,3,34,7],[34,20,37,24],[35,0,35,1],[35,3,35,7],[36,0,36,1],[36,3,36,7],[37,0,37,1],[37,3,37,7],[29,0,29,1],[29,3,29,7],[29,19,33,24],[30,0,32,1],[30,2,32,2],[30,3,32,7],[30,8,32,8],[33,0,33,1],[33,3,33,7],[24,0,24,8],[24,19,27,24],[25,4,25,7],[26,0,26,1],[26,3,26,7],[27,0,27,1],[27,3,27,7],[23,19,23,23],[8,3,8,7],[9,0,10,1],[9,3,17,8],[14,0,18,1],[19,3,19,7],[20,3,20,4],[20,5,20,7],[21,3,21,4],[21,5,21,7],[22,3,22,4],[22,5,22,7],[11,10,18,15],[101,0,101,1],[101,3,101,7],[96,0,96,8],[97,0,97,1],[97,3,97,7],[98,0,98,1],[98,3,98,7],[99,0,99,1],[99,3,99,7],[100,0,100,1],[100,3,100,7]]}
[]
[]
[]
[]
[]
[]
[]
["Rules and Regulations"]
["Facebook Ad Guidelines",null,null,"Advertiser Access"]
["Ensure that your ads comply with all applicable laws, statutes, and regulations.",null,null,"Providing admin is a standard process that protects a brand from fraud by assigning an ‘Advertiser’ label to those who manage paid ads on a client’s behalf. As such, Ignite must be given the necessary permission to promote a client's Facebook page. To do so, Ignite will send a request to the specified Facebook Page and the managers of the Page will receive a notification allowing them to ‘accept’ or ‘decline’ this request."]
[]
["Read more here"]
[]
["Text Image Rule"]
["To ensure people only see high-quality content, images in your ads cannot include any text. This includes logos and slogans in images. "]
[]
[]
[]
[null,null,null,"Read more here"]
["Last Updated: 7/23/19",null,null,"Client Advertiser Access: Contact information for reporting "]
[null,null,null,"First Name:",null,"John "]
[null,null,null,"Last Name:",null,"Smith"]
[null,null,null,"Email: ",null,"john.smith@example.com"]
["Carousel  (2-10 Scrollable Images of Video) **NOT AVAILABLE FOR POST ENGAGEMENT"]
["AD IMAGE 1"]
["Section",null,"Required Specs",null,"Must fill out below fields:",null,null,null,"Remaining Characters"]
["Name of ad\nUsed for reference purposes only"]
["Name of Image OR Video\nCompelling images and videos encourage your target audiences to engage.",null,"      1:1 Ratio            Photo: 1080x1080 pixels \n Video: .mp4, .mov and at least 720 pixels MAX size: 1.75 GB (Max video length: 60 seconds on Instagram and 60 minutes on Facebook)"]
["Are the assets in a clear resolution and in the correct specs?",null,"      1:1 Ratio            Photo: 1080x1080 pixels \n Video: .mp4, .mov and at least 720 pixels MAX size: 1.75 GB (Max video length: 60 seconds on Instagram and 60 minutes on Facebook)"]
["URL of Facebook Page\nThe name of your business always shows prominently."]
["Post Text\nEnter text that clearly tells people about what you're promoting",null,"125 characters",null,null,null,null,null,{"$f":"125-LEN(D31)","v":125}]
[]
[]
["Headline\nDescribes Link",null,"40 characters",null,null,null,null,null,{"$f":"40-LEN(D34)","v":40}]
["Newsfeed Link Description (Optional)\nFurther describes the content of the link being promoted. Only shows in News Feed.",null,"20 characters",null,null,null,null,null,{"$f":"20-(LEN(D35))","v":20}]
["Website Destination URL\nWill show a shorter URL. MUST have same domain as Website Destination URL."]
["\"See More\" Link\nEnter the website URL you want to promote"]
["\"See More\" Link Display URL\nWill show a shorter, friendlier URL"]
["Call To Action                                                                          \nPlease select one from the drop-down menu at right",null,"Select in drop down menu"]
["Additional Questions\nCarousel Card Sequence Information",null,null,"1.) Ads need to follow indicated sequence on this template?\n\n2.) Ads Can automatically show the best performing cards first?\n\n3.) Add a card at the end with advertiser page profile picture?"]
["Only for political campaigns",null,null,null,null,null,null,null,null,"Please note:  when running a political campaign please be advised of the 2-3 week verification process"]
["Disclaimer\n(Your disclaimer must accurately represent the name of the entity or person responsible for the ad. Please see  here for guidelines. (https://www.facebook.com/business/help/198009284345835)",null,360,null,null,null,null,null,{"$f":"360-(LEN(D42))","v":360}]
["AD IMAGE 2"]
["Name of Image of Video\nCompelling images encourage your target audiences to engage.",null," 1:1 Ratio                  Photo: 1080x1080 pixels"]
["Headline\nDescribes Link",null,"40 characters",null,null,null,null,null,{"$f":"40-LEN(D45)","v":40}]
["Newsfeed Link Description\nFurther describes the content of the link being promoted. Only shows in News Feed.",null,"20 Characters",null,null,null,null,null,{"$f":"20-(LEN(D46))","v":20}]
["Website Destination URL\nDestination URL that you want to promote. "]
[]
["AD IMAGE 3"]
["Name of Image of Video\nCompelling images encourage your target audiences to engage.",null," 1:1 Ratio                 Photo: 1080x1080 pixels\n "]
["Headline\nDescribes Link",null,"40 characters",null,null,null,null,null,{"$f":"40-LEN(D51)","v":40}]
["Newsfeed Link Description\nFurther describes the content of the link being promoted. Only shows in News Feed.",null,"20 Characters",null,null,null,null,null,{"$f":"20-(LEN(D52))","v":20}]
["Website Destination URL\nDestination URL that you want to promote. "]
[]
["AD IMAGE 4"]
["Name of ad\nUsed for reference purposes only"]
["Name of Image of Video\nCompelling images encourage your target audiences to engage.",null," 1:1 Ratio                 Photo: 1080x1080 pixels"]
["Headline\nDescribes Link",null,"40 characters",null,null,null,null,null,{"$f":"40-LEN(D58)","v":40}]
["Newsfeed Link Description\nFurther describes the content of the link being promoted. Only shows in News Feed.",null,"20 Characters",null,null,null,null,null,{"$f":"20-(LEN(D59))","v":20}]
["Website Destination URL\nDestination URL that you want to promote. "]
[]
["AD IMAGE 5"]
["Name of ad\nUsed for reference purposes only"]
["Name of Image of Video\nCompelling images encourage your target audiences to engage.",null," 1:1 Ratio                 Photo: 1080x1080 pixels"]
["Headline\nDescribes Link",null,"40 characters",null,null,null,null,null,{"$f":"40-LEN(D65)","v":40}]
["Newsfeed Link Description\nFurther describes the content of the link being promoted. Only shows in News Feed.",null,"20 Characters",null,null,null,null,null,{"$f":"20-(LEN(D66))","v":20}]
["Website Destination URL\nDestination URL that you want to promote. "]
[]
["AD IMAGE 6"]
["Name of ad\nUsed for reference purposes only"]
["Name of Image of Video\nCompelling images encourage your target audiences to engage.",null," 1:1 Ratio                 Photo: 1080x1080 pixels  \n "]
["Headline\nDescribes Link",null,"40 characters",null,null,null,null,null,{"$f":"40-LEN(D72)","v":40}]
["Newsfeed Link Description\nFurther describes the content of the link being promoted. Only shows in News Feed.",null,"20 Characters",null,null,null,null,null,{"$f":"20-(LEN(D73))","v":20}]
["Website Destination URL\nDestination URL that you want to promote. "]
[]
["AD IMAGE 7"]
["Name of ad\nUsed for reference purposes only"]
["Name of Image of Video\nCompelling images encourage your target audiences to engage.",null," 1:1 Ratio                 Photo: 1080x1080 pixels\n "]
["Headline\nDescribes Link",null,"40 characters",null,null,null,null,null,{"$f":"40-LEN(D79)","v":40}]
["Newsfeed Link Description\nFurther describes the content of the link being promoted. Only shows in News Feed.",null,"20 Characters",null,null,null,null,null,{"$f":"20-(LEN(D80))","v":20}]
["Website Destination URL\nDestination URL that you want to promote. "]
[]
["AD IMAGE 8"]
["Name of ad\nUsed for reference purposes only"]
["Name of Image or Video\nCompelling images encourage your target audiences to engage.",null," 1:1 Ratio                 Photo: 1080x1080 pixels\n "]
["Headline\nDescribes Link",null,"40 characters",null,null,null,null,null,{"$f":"40-LEN(D86)","v":40}]
["Newsfeed Link Description\nFurther describes the content of the link being promoted. Only shows in News Feed.",null,"20 Characters",null,null,null,null,null,{"$f":"20-(LEN(D87))","v":20}]
["Website Destination URL\nDestination URL that you want to promote. "]
[]
["AD IMAGE 9"]
["Name of ad\nUsed for reference purposes only"]
["Name of Image of Video\nCompelling images encourage your target audiences to engage.",null," 1:1 Ratio                 Photo: 1080x1080 pixels\n "]
["Headline\nDescribes Link",null,"40 characters",null,null,null,null,null,{"$f":"40-LEN(D93)","v":40}]
["Newsfeed Link Description\nFurther describes the content of the link being promoted. Only shows in News Feed.",null,"20 Characters",null,null,null,null,null,{"$f":"20-(LEN(D94))","v":20}]
["Website Destination URL\nDestination URL that you want to promote. "]
[]
["AD IMAGE 10"]
["Name of ad\nUsed for reference purposes only"]
["Name of Image of Video\nCompelling images encourage your target audiences to engage.",null," 1:1 Ratio                 Photo: 1080x1080 pixels\n "]
["Headline\nDescribes Link",null,"40 characters",null,null,null,null,null,{"$f":"40-LEN(D100)","v":40}]
["Newsfeed Link Description\nFurther describes the content of the link being promoted. Only shows in News Feed.",null,"20 Characters",null,null,null,null,null,{"$f":"20-(LEN(D101))","v":20}]
["Website Destination URL\nDestination URL that you want to promote. "]

{"sheet":"Multiple Text Options","index":4,"n_rows":139,"n_cols":10,"rows_kept":139,"cut":false,"hidden":false,"merged":[[43,0,43,1],[43,3,43,7],[44,0,44,1],[44,3,44,7],[45,0,45,1],[45,3,45,7],[46,0,46,1],[46,3,46,7],[25,9,27,13],[39,3,39,7],[40,3,40,7],[41,3,41,7],[26,0,28,1],[26,2,28,2],[26,3,28,7],[26,8,28,8],[33,0,33,1],[33,3,33,7],[34,0,34,1],[34,3,34,7],[35,0,35,1],[35,3,35,7],[48,0,48,1],[48,3,48,7],[49,0,49,1],[49,3,49,7],[29,0,29,1],[30,0,30,1],[31,0,31,1],[32,0,32,1],[32,3,32,7],[31,3,31,7],[30,3,30,7],[29,3,29,7],[38,0,38,1],[39,0,39,1],[40,0,40,1],[36,0,36,8],[37,0,37,1],[37,3,37,7],[42,0,42,1],[42,3,42,7],[47,0,47,1],[47,3,47,7],[41,0,41,1],[38,3,38,7],[8,3,8,7],[9,3,17,8],[19,3,19,7],[20,3,20,4],[20,5,20,7],[24,4,24,7],[25,0,25,1],[25,3,25,7],[14,0,18,1],[21,3,21,4],[21,5,21,7],[22,3,22,4],[22,5,22,7],[59,0,59,1],[59,3,59,7],[60,0,60,1],[60,3,60,7],[61,0,63,1],[61,2,63,2],[61,3,63,7],[55,0,55,8],[56,4,56,7],[57,0,57,1],[57,3,57,7],[58,0,58,1],[58,3,58,7],[78,0,78,1],[78,3,78,7],[79,0,79,1],[79,3,79,7],[80,0,80,1],[80,3,80,7],[61,8,63,8],[76,0,76,1],[76,3,76,7],[77,0,77,1],[77,3,77,7],[64,8,66,8],[67,8,69,8],[70,8,72,8],[73,8,75,8],[83,9,84,13],[84,0,84,1],[84,3,84,7],[85,0,85,8],[86,0,86,1],[86,3,86,7],[81,0,81,1],[81,3,81,7],[82,0,82,1],[82,3,82,7],[83,0,83,8],[91,0,91,8],[92,0,92,1],[92,3,92,7],[93,0,93,1],[93,3,93,7],[87,0,87,1],[87,3,87,7],[88,0,88,1],[88,3,88,7],[89,0,89,1],[89,3,89,7],[98,0,98,1],[98,3,98,7],[99,0,99,1],[99,3,99,7],[94,0,94,1],[94,3,94,7],[95,0,95,1],[95,3,95,7],[97,0,97,8],[104,0,104,1],[104,3,104,7],[105,0,105,1],[105,3,105,7],[100,0,100,1],[100,3,100,7],[101,0,101,1],[101,3,101,7],[103,0,103,8],[110,0,110,1],[110,3,110,7],[111,0,111,1],[111,3,111,7],[106,0,106,1],[106,3,106,7],[107,0,107,1],[107,3,107,7],[109,0,109,8],[116,0,116,1],[116,3,116,7],[117,0,117,1],[117,3,117,7],[112,0,112,1],[112,3,112,7],[113,0,113,1],[113,3,113,7],[115,0,115,8],[122,0,122,1],[122,3,122,7],[123,0,123,1],[123,3,123,7],[118,0,118,1],[118,3,118,7],[119,0,119,1],[119,3,119,7],[121,0,121,8],[131,0,131,1],[131,3,131,7],[133,0,133,8],[128,0,128,1],[128,3,128,7],[129,0,129,1],[129,3,129,7],[124,0,124,1],[124,3,124,7],[125,0,125,1],[125,3,125,7],[127,0,127,8],[137,0,137,1],[137,3,137,7],[138,0,138,1],[138,3,138,7],[64,0,66,1],[64,2,66,2],[64,3,66,7],[67,0,69,1],[67,2,69,2],[67,3,69,7],[70,0,72,1],[70,2,72,2],[70,3,72,7],[73,0,75,1],[73,2,75,2],[73,3,75,7],[134,0,134,1],[134,3,134,7],[135,0,135,1],[135,3,135,7],[136,0,136,1],[136,3,136,7],[130,0,130,1],[130,3,130,7]]}
[]
[]
[]
[]
[]
[]
[]
["Rules and Regulations"]
["Facebook Ad Guidelines",null,null,"Advertiser Access"]
["Ensure that your ads comply with all applicable laws,",null,null,"Providing admin is a standard process that protects a brand from fraud by assigning an ‘Advertiser’ label to those who manage paid ads on a client’s behalf. As such, Ignite must be given the necessary permission to promote a client's Facebook page. To do so, Ignite will send a request to the specified Facebook Page and the managers of the Page will receive a notification allowing them to ‘accept’ or ‘decline’ this request."]
["statutes, and regulations."]
["Read more here"]
[]
["Text Image Rule"]
["To ensure people only see high-quality content, images in your ads cannot include any text. This includes logos and slogans in images. "]
[]
[]
[]
[null,null,null,"Read more here"]
["Last Updated: 8/13/19",null,null,"Client Advertiser Access: Contact information for reporting "]
[null,null,null,"First Name:",null,"John "]
[null,null,null,"Last Name:",null,"Smith"]
[null,null,null,"Email: ",null,"john.smith@example.com"]
["Multiple Text Options - Single Image or Video"]
["Section",null,"Required Specs",null,"Must fill out below fields:",null,null,null,"Remaining Characters"]
["Name of ad\nUsed for reference purposes only",null,null,null,null,null,null,null,null,"*Note: Any Post Text option may be used in place of another Post Text option if it is determined to drive stronger traffic"]
["Post Text 1\nEnter text that clearly tells people about what you're promoting",null,"125 characters",null,null,null,null,null,{"$f":"125-LEN(D27)","v":125}]
[]
[null,null,null,null,null,null,null,null,null,"*May be used as the Primary Text in the ad shown, along with ANY of the 1-5 Headline or Newsfeed Link Description options below."]
["Post Text 2\nEnter text that clearly tells people about what you're promoting",null,"125 characters",null,null,null,null,null,{"$f":"125-LEN(D30)","v":125},"*May be used as the Primary Text in the ad shown, along with ANY of the 1-5 Headline or Newsfeed Link Description options below."]
["Post Text 3 (Optional)\nEnter text that clearly tells people about what you're promoting\t",null,"125 characters",null,null,null,null,null,{"$f":"125-LEN(D31)","v":125},"*May be used as the Primary Text in the ad shown, along with ANY of the 1-5 Headline or Newsfeed Link Description options below."]
["Post Text 4 (Optional)\nEnter text that clearly tells people about what you're promoting\t",null,"125 characters",null,null,null,null,null,{"$f":"125-LEN(D32)","v":125},"*May be used as the Primary Text in the ad shown, along with ANY of the 1-5 Headline or Newsfeed Link Description options below."]
["Post Text 5 (Optional)\nEnter text that clearly tells people about what you're promoting\t",null,"125 characters",null,null,null,null,null,{"$f":"125-LEN(D33)","v":125},"*May be used as the Primary Text in the ad shown, along with ANY of the 1-5 Headline or Newsfeed Link Description options below."]
["Name of Image or Video\nCompelling images and videos encourage your target audiences to engage.",null,"1080x1080 pixels (Image ratio: 1.91:1 to 1:1)"]
["Is the single image or video in a clear 1080x1080 resolution?",null,"1080x1080 pixels (Image ratio: 1.91:1 to 1:1)"]
["URL of Facebook Page\nThe name of your business always shows prominently."]
["* STOP HERE IF RUNNING AWARENESS WITH AD THAT DRIVES TO FACEBOOK PAGE (INSTEAD OF WEBSITE), OTHERWISE CONTINUE"]
["Headline 1\nDescribes Link",null,"40 characters",null,null,null,null,null,{"$f":"40-LEN(D38)","v":40},"*May be used as the Headline in the ad shown, along with ANY of the 1-5 Post Text or Newsfeed Link Descriptions."]
["Headline 2\nDescribes Link",null,"40 characters",null,null,null,null,null,{"$f":"40-LEN(D39)","v":40},"*May be used as the Headline in the ad shown, along with ANY of the 1-5 Post Text or Newsfeed Link Descriptions."]
["Headline 3 (Optional)\nDescribes Link",null,"40 characters",null,null,null,null,null,{"$f":"40-LEN(D40)","v":40},"*May be used as the Headline in the ad shown, along with ANY of the 1-5 Post Text or Newsfeed Link Descriptions."]
["Headline 4 (Optional)\nDescribes Link",null,"40 characters",null,null,null,null,null,{"$f":"40-LEN(D41)","v":40},"*May be used as the Headline in the ad shown, along with ANY of the 1-5 Post Text or Newsfeed Link Descriptions."]
["Headline 5 (Optional)\nDescribes Link",null,"40 characters",null,null,null,null,null,{"$f":"40-LEN(D42)","v":40},"*May be used as the Headline in the ad shown, along with ANY of the 1-5 Post Text or Newsfeed Link Descriptions."]
["**Newsfeed Link Description 1\nFurther describes the content of the link being promoted. Only shows in News Feed.",null,30,null,null,null,null,null,{"$f":"30-(LEN(D43))","v":30},"*May be used as the Newsfeed Link Descriptions in the ad, along with ANY of the 1-5 Post Text or Headline options above."]
["**Newsfeed Link Description 2 (Optional)\nFurther describes the content of the link being promoted. Only shows in News Feed.",null,30,null,null,null,null,null,{"$f":"30-(LEN(D44))","v":30},"*May be used as the Newsfeed Link Descriptions in the ad, along with ANY of the 1-5 Post Text or Headline options above."]
["**Newsfeed Link Description 3 (Optional)\nFurther describes the content of the link being promoted. Only shows in News Feed.",null,30,null,null,null,null,null,{"$f":"30-(LEN(D45))","v":30},"*May be used as the Newsfeed Link Descriptions in the ad, along with ANY of the 1-5 Post Text or Headline options above."]
["**Newsfeed Link Description 4 (Optional)\nFurther describes the content of the link being promoted. Only shows in News Feed.",null,30,null,null,null,null,null,{"$f":"30-(LEN(D46))","v":30},"*May be used as the Newsfeed Link Descriptions in the ad, along with ANY of the 1-5 Post Text or Headline options above."]
["**Newsfeed Link Description 5 (Optional)\nFurther describes the content of the link being promoted. Only shows in News Feed.",null,30,null,null,null,null,null,{"$f":"30-(LEN(D47))","v":30},"*May be used as the Newsfeed Link Descriptions in the ad, along with ANY of the 1-5 Post Text or Headline options above."]
["**Website Destination URL\nDestination URL that you want to promote. "]
["**Display link\nWill show a shorter URL. MUST have same domain as Website Destination URL."]
["**Call To Action                                                                          \nPlease select one from the drop-down menu at right",null,"Select in drop down menu"]
[]
[]
[]
[]
["Multiple Text Options - Carousel  (2-10 Scrollable Images of Video) **NOT AVAILABLE FOR POST ENGAGEMENT"]
["AD IMAGE 1"]
["Section",null,"Required Specs",null,"Must fill out below fields:",null,null,null,"Remaining Characters"]
["Name of ad\nUsed for reference purposes only"]
["Name of Image OR Video\nCompelling images and videos encourage your target audiences to engage.",null,"      1:1 Ratio            Photo: 1080x1080 pixels \n Video: .mp4, .mov and at least 720 pixels MAX size: 1.75 GB (Max video length: 60 seconds on Instagram and 60 minutes on Facebook)"]
["Are the assets in a clear resolution and in the correct specs?",null,"      1:1 Ratio            Photo: 1080x1080 pixels \n Video: .mp4, .mov and at least 720 pixels MAX size: 1.75 GB (Max video length: 60 seconds on Instagram and 60 minutes on Facebook)"]
["URL of Facebook Page\nThe name of your business always shows prominently."]
["Post Text #1\nEnter text that clearly tells people about what you're promoting",null,"125 characters",null,null,null,null,null,{"$f":"125-LEN(D62)","v":125}]
[]
[]
["Post Text #2\n*May be used as the post text in the ad if it drives stronger performance",null,"125 characters",null,null,null,null,null,{"$f":"125-LEN(D65)","v":125}]
[]
[null,null,null,null,null,null,null,null,null,"*Any Post Text selection may be used as the Post Text in the ad shown."]
["Post Text #3 (Optional)\n*May be used as the post text in the ad if it drives stronger performance",null,"125 characters",null,null,null,null,null,{"$f":"125-LEN(D68)","v":125}]
[]
[null,null,null,null,null,null,null,null,null,"*Any Post Text selection may be used as the Post Text in the ad shown."]
["Post Text #4 (Optional)\n*May be used as the post text in the ad if it drives stronger performance",null,"125 characters",null,null,null,null,null,{"$f":"125-LEN(D71)","v":125}]
[]
[null,null,null,null,null,null,null,null,null,"*Any Post Text selection may be used as the Post Text in the ad shown."]
["Post Text #5 (Optional)\n*May be used as the post text in the ad if it drives stronger performance",null,"125 characters",null,null,null,null,null,{"$f":"125-LEN(D74)","v":125}]
[]
[null,null,null,null,null,null,null,null,null,"*Any Post Text selection may be used as the Post Text in the ad shown."]
["Headline\nDescribes Link",null,"40 characters",null,null,null,null,null,{"$f":"40-LEN(D77)","v":40}]
["Newsfeed Link Description (Optional)\nFurther describes the content of the link being promoted. Only shows in News Feed.",null,"20 characters",null,null,null,null,null,{"$f":"20-(LEN(D78))","v":20}]
["Website Destination URL\nWill show a shorter URL. MUST have same domain as Website Destination URL."]
["\"See More\" Link\nEnter the website URL you want to promote"]
["\"See More\" Link Display URL\nWill show a shorter, friendlier URL"]
["Call To Action                                                                          \nPlease select one from the drop-down menu at right",null,"Select in drop down menu"]
["Additional Questions\nCarousel Card Sequence Information",null,null,"1.) Ads need to follow indicated sequence on this template?\n2.) Ads Can automatically show the best performing cards first?\n3.) Add a card at the end with advertiser page profile picture?"]
["Only for political campaigns",null,null,null,null,null,null,null,null,"Please note:  when running a political campaign please be advised of the 2-3 week verification process"]
["Disclaimer\n(Your disclaimer must accurately represent the name of the entity or person responsible for the ad. Please see  here for guidelines. (https://www.facebook.com/business/help/198009284345835)",null,360,null,null,null,null,null,{"$f":"360-(LEN(D85))","v":360}]
[]
["Name of Image of Video\nCompelling images encourage your target audiences to engage.",null," 1:1 Ratio                  Photo: 1080x1080 pixels"]
["Headline\nDescribes Link",null,"40 characters",null,null,null,null,null,{"$f":"40-LEN(D88)","v":40}]
["Newsfeed Link Description\nFurther describes the content of the link being promoted. Only shows in News Feed.",null,"20 Characters",null,null,null,null,null,{"$f":"20-(LEN(D89))","v":20}]
["Website Destination URL\nDestination URL that you want to promote. "]
[]
["AD IMAGE 3"]
["Name of Image of Video\nCompelling images encourage your target audiences to engage.",null," 1:1 Ratio                 Photo: 1080x1080 pixels\n "]
["Headline\nDescribes Link",null,"40 characters",null,null,null,null,null,{"$f":"40-LEN(D94)","v":40}]
["Newsfeed Link Description\nFurther describes the content of the link being promoted. Only shows in News Feed.",null,"20 Characters",null,null,null,null,null,{"$f":"20-(LEN(D95))","v":20}]
["Website Destination URL\nDestination URL that you want to promote. "]
[]
["AD IMAGE 4"]
["Name of Image of Video\nCompelling images encourage your target audiences to engage.",null," 1:1 Ratio                 Photo: 1080x1080 pixels"]
["Headline\nDescribes Link",null,"40 characters",null,null,null,null,null,{"$f":"40-LEN(D100)","v":40}]
["Newsfeed Link Description\nFurther describes the content of the link being promoted. Only shows in News Feed.",null,"20 Characters",null,null,null,null,null,{"$f":"20-(LEN(D101))","v":20}]
["Website Destination URL\nDestination URL that you want to promote. "]
[]
["AD IMAGE 5"]
["Name of Image of Video\nCompelling images encourage your target audiences to engage.",null," 1:1 Ratio                 Photo: 1080x1080 pixels"]
["Headline\nDescribes Link",null,"40 characters",null,null,null,null,null,{"$f":"40-LEN(D106)","v":40}]
["Newsfeed Link Description\nFurther describes the content of the link being promoted. Only shows in News Feed.",null,"20 Characters",null,null,null,null,null,{"$f":"20-(LEN(D107))","v":20}]
["Website Destination URL\nDestination URL that you want to promote. "]
[]
["AD IMAGE 6"]
["Name of Image of Video\nCompelling images encourage your target audiences to engage.",null," 1:1 Ratio                 Photo: 1080x1080 pixels  \n "]
["Headline\nDescribes Link",null,"40 characters",null,null,null,null,null,{"$f":"40-LEN(D112)","v":40}]
["Newsfeed Link Description\nFurther describes the content of the link being promoted. Only shows in News Feed.",null,"20 Characters",null,null,null,null,null,{"$f":"20-(LEN(D113))","v":20}]
["Website Destination URL\nDestination URL that you want to promote. "]
[]
["AD IMAGE 7"]
["Name of Image of Video\nCompelling images encourage your target audiences to engage.",null," 1:1 Ratio                 Photo: 1080x1080 pixels\n "]
["Headline\nDescribes Link",null,"40 characters",null,null,null,null,null,{"$f":"40-LEN(D118)","v":40}]
["Newsfeed Link Description\nFurther describes the content of the link being promoted. Only shows in News Feed.",null,"20 Characters",null,null,null,null,null,{"$f":"20-(LEN(D119))","v":20}]
["Website Destination URL\nDestination URL that you want to promote. "]
[]
["AD IMAGE 8"]
["Name of Image or Video\nCompelling images encourage your target audiences to engage.",null," 1:1 Ratio                 Photo: 1080x1080 pixels\n "]
["Headline\nDescribes Link",null,"40 characters",null,null,null,null,null,{"$f":"40-LEN(D124)","v":40}]
["Newsfeed Link Description\nFurther describes the content of the link being promoted. Only shows in News Feed.",null,"20 Characters",null,null,null,null,null,{"$f":"20-(LEN(D125))","v":20}]
["Website Destination URL\nDestination URL that you want to promote. "]
[]
["AD IMAGE 9"]
["Name of Image of Video\nCompelling images encourage your target audiences to engage.",null," 1:1 Ratio                 Photo: 1080x1080 pixels\n "]
["Headline\nDescribes Link",null,"40 characters",null,null,null,null,null,{"$f":"40-LEN(D130)","v":40}]
["Newsfeed Link Description\nFurther describes the content of the link being promoted. Only shows in News Feed.",null,"20 Characters",null,null,null,null,null,{"$f":"20-(LEN(D131))","v":20}]
["Website Destination URL\nDestination URL that you want to promote. "]
[]
["AD IMAGE 10"]
["Name of ad\nUsed for reference purposes only"]
["Name of Image of Video\nCompelling images encourage your target audiences to engage.",null," 1:1 Ratio                 Photo: 1080x1080 pixels\n "]
["Headline\nDescribes Link",null,"40 characters",null,null,null,null,null,{"$f":"40-LEN(D137)","v":40}]
["Newsfeed Link Description\nFurther describes the content of the link being promoted. Only shows in News Feed.",null,"20 Characters",null,null,null,null,null,{"$f":"20-(LEN(D138))","v":20}]
["Website Destination URL\nDestination URL that you want to promote. "]

{"sheet":"Dynamic Creative","index":5,"n_rows":68,"n_cols":16,"rows_kept":68,"cut":false,"hidden":false,"merged":[[63,9,63,19],[56,9,56,21],[29,0,29,1],[29,3,29,7],[34,9,34,21],[38,9,38,19],[51,9,51,20],[46,0,46,1],[46,3,46,7],[63,0,63,1],[63,3,63,7],[60,0,60,1],[60,3,60,7],[61,0,61,1],[61,3,61,7],[43,0,43,1],[64,0,64,1],[64,3,64,7],[67,0,67,1],[67,3,67,7],[65,0,65,1],[65,3,65,7],[66,0,66,1],[66,3,66,7],[56,0,56,1],[56,3,56,7],[62,0,62,1],[62,3,62,7],[57,0,57,1],[57,3,57,7],[58,0,58,1],[58,3,58,7],[59,0,59,1],[59,3,59,7],[54,0,54,1],[54,3,54,7],[55,0,55,1],[55,3,55,7],[53,0,53,1],[53,3,53,7],[47,0,47,1],[47,3,47,7],[39,0,39,1],[39,3,39,7],[52,3,52,7],[40,0,40,1],[40,3,40,7],[41,0,41,1],[41,3,41,7],[42,0,42,1],[42,3,42,7],[43,3,43,7],[44,0,44,1],[44,3,44,7],[45,0,45,1],[45,3,45,7],[50,0,50,8],[51,0,51,1],[51,3,51,7],[52,0,52,1],[35,0,35,1],[35,3,35,7],[36,0,36,1],[36,3,36,7],[37,0,37,1],[37,3,37,7],[38,0,38,1],[38,3,38,7],[48,0,48,1],[48,3,48,7],[49,0,49,1],[49,3,49,7],[34,0,34,1],[34,3,34,7],[30,3,30,7],[30,0,30,1],[30,9,30,13],[31,9,33,21],[31,0,33,1],[31,2,33,2],[31,3,33,7],[31,8,33,8],[21,3,21,4],[21,5,21,7],[22,3,22,4],[22,5,22,7],[28,4,28,7],[27,0,27,30],[26,0,26,29],[24,0,24,29],[25,0,25,29],[8,3,8,7],[9,3,17,8],[14,0,18,1],[19,3,19,7],[20,3,20,4],[20,5,20,7]]}
[]
[]
[]
[]
[]
[]
[]
["Rules and Regulations"]
["Facebook Ad Guidelines",null,null,"Advertiser Access"]
["Ensure that your ads comply with all applicable laws,",null,null,"Providing admin is a standard process that protects a brand from fraud by assigning an ‘Advertiser’ label to those who manage paid ads on a client’s behalf. As such, Ignite must be given the necessary permission to promote a client's Facebook page. To do so, Ignite will send a request to the specified Facebook Page and the managers of the Page will receive a notification allowing them to ‘accept’ or ‘decline’ this request."]
["statutes, and regulations."]
["Read more here"]
[]
["Text Image Rule"]
["To ensure people only see high-quality content, images in your ads cannot include any text. This includes logos and slogans in images. "]
[]
[]
[]
[null,null,null,"Read more here"]
["Last Updated: 8/13/19",null,null,"Client Advertiser Access: Contact information for reporting "]
[null,null,null,"First Name:",null,"John "]
[null,null,null,"Last Name:",null,"Smith"]
[null,null,null,"Email: ",null,"john.smith@example.com"]
["Dynamic Creative - Single Image & Video, Carousel"]
["Campaigns can only use either Standard or Dynamic Creative. If using Dynamic Creative, all other ad sets and ads must be paused"]
["Only one option (Single Asset, Carousel) can be selected below."]
["Dynamic Creative Carousel Cards will be created from images, headlines, newsfeed link descriptions, and CTAs provided below. We cannot associate any image with any headline, description, or CTA"]
["Dynamic Single Asset ads may have images and videos below cropped, enhanced, edited for certain placements, or turned into videos by Facebook. Text may be swapped between Post Text and Headline fields."]
["Section",null,"Required Specs",null,"Must fill out below fields:",null,null,null,"Remaining Characters"," ",null,null,null,null,null,"Select Ad Format"]
["Name of ad\nUsed for reference purposes only",null,null,null,null,null,null,null,null,null,null,null,null,null,null,"Single Asset (Image & Video)"]
["Ad Format\nSingle Asset, or Carousel",null,"Can only select 1","Select Ad Format",null,null,null,null,null,"*Note - if Carousel is selected, ONLY images can be provided below ",null,null,null,null,null,"Carousel"]
["Post Text 1\nEnter text that clearly tells people about what you're promoting",null,"125 characters",null,null,null,null,null,{"$f":"125-LEN(D32)","v":125},"*Any option may be the Primary Text in the ad, along with ANY of the 1-5 Headline or Newsfeed Link Description options below."]
[]
[]
["Post Text 2 (Optional)\nEnter text that clearly tells people about what you're promoting",null,"125 characters",null,null,null,null,null,{"$f":"125-LEN(D35)","v":125}]
["Post Text 3 (Optional)\nEnter text that clearly tells people about what you're promoting\t",null,"125 characters",null,null,null,null,null,{"$f":"125-LEN(D36)","v":125}]
["Post Text 4 (Optional)\nEnter text that clearly tells people about what you're promoting\t",null,"125 characters",null,null,null,null,null,{"$f":"125-LEN(D37)","v":125}]
["Post Text 5 (Optional)\nEnter text that clearly tells people about what you're promoting\t",null,"125 characters",null,null,null,null,null,{"$f":"125-LEN(D38)","v":125}]
["Name of Image or Video 1 (up to 10)\nCompelling images and videos encourage your target audiences to engage.",null,"1080x1080 pixels (Image ratio: 1.91:1 to 1:1)",null,null,null,null,null,null,"*If carousel is selected, only images can be used. If Single Asset is selected, images or videos can be used."]
["Name of Image or Video 2 (up to 10)\nCompelling images and videos encourage your target audiences to engage.",null,"1080x1080 pixels (Image ratio: 1.91:1 to 1:1)"]
["Name of Image or Video 3 (optional) (up to 10)\nCompelling images and videos encourage your target audiences to engage.",null,"1080x1080 pixels (Image ratio: 1.91:1 to 1:1)"]
["Name of Image or Video 4 (optional) (up to 10)\nCompelling images and videos encourage your target audiences to engage.",null,"1080x1080 pixels (Image ratio: 1.91:1 to 1:1)"]
["Name of Image or Video 5 (optional) (up to 10)\nCompelling images and videos encourage your target audiences to engage.",null,"1080x1080 pixels (Image ratio: 1.91:1 to 1:1)"]
["Name of Image or Video 6 (optional) (up to 10)\nCompelling images and videos encourage your target audiences to engage.",null,"1080x1080 pixels (Image ratio: 1.91:1 to 1:1)"]
["Name of Image or Video 7 (optional) (up to 10)\nCompelling images and videos encourage your target audiences to engage.",null,"1080x1080 pixels (Image ratio: 1.91:1 to 1:1)"]
["Name of Image or Video 8 (optional) (up to 10)\nCompelling images and videos encourage your target audiences to engage.",null,"1080x1080 pixels (Image ratio: 1.91:1 to 1:1)"]
["Name of Image or Video 9 (optional) (up to 10)\nCompelling images and videos encourage your target audiences to engage.",null,"1080x1080 pixels (Image ratio: 1.91:1 to 1:1)"]
["Name of Image or Video 10 (optional) (up to 10)\nCompelling images and videos encourage your target audiences to engage.",null,"1080x1080 pixels (Image ratio: 1.91:1 to 1:1)"]
["Are the single images or videos in a clear 1080x1080 resolution?",null,"1080x1080 pixels (Image ratio: 1.91:1 to 1:1)"]
["URL of Facebook Page\nThe name of your business always shows prominently."]
["* STOP HERE IF RUNNING AWARENESS WITH AD THAT DRIVES TO FACEBOOK PAGE (INSTEAD OF WEBSITE), OTHERWISE CONTINUE"]
["Headline 1\nDescribes Link",null,"40 characters",null,null,null,null,null,{"$f":"40-LEN(D52)","v":40},"*Any option may be used as the Headline in the ad, along with ANY of the 1-5 Post Text or Newsfeed Link Descriptions."]
["Headline 2 (Optional)\nDescribes Link",null,"40 characters",null,null,null,null,null,{"$f":"40-LEN(D53)","v":40}]
["Headline 3 (Optional)\nDescribes Link",null,"40 characters",null,null,null,null,null,{"$f":"40-LEN(D54)","v":40}]
["Headline 4 (Optional)\nDescribes Link",null,"40 characters",null,null,null,null,null,{"$f":"40-LEN(D55)","v":40}]
["Headline 5 (Optional)\nDescribes Link",null,"40 characters",null,null,null,null,null,{"$f":"40-LEN(D56)","v":40}]
["**Newsfeed Link Description 1\nFurther describes the content of the link being promoted. Only shows in News Feed.",null,30,null,null,null,null,null,{"$f":"30-(LEN(D57))","v":30},"*Any option may be used as the Newsfeed Link Description in the ad, along with ANY of the 1-5 Post Text or Headline options above."]
["**Newsfeed Link Description 2 (Optional)\nFurther describes the content of the link being promoted. Only shows in News Feed.",null,30,null,null,null,null,null,{"$f":"30-(LEN(D58))","v":30}]
["**Newsfeed Link Description 3 (Optional)\nFurther describes the content of the link being promoted. Only shows in News Feed.",null,30,null,null,null,null,null,{"$f":"30-(LEN(D59))","v":30}]
["**Newsfeed Link Description 4 (Optional)\nFurther describes the content of the link being promoted. Only shows in News Feed.",null,30,null,null,null,null,null,{"$f":"30-(LEN(D60))","v":30}]
["**Newsfeed Link Description 5 (Optional)\nFurther describes the content of the link being promoted. Only shows in News Feed.",null,30,null,null,null,null,null,{"$f":"30-(LEN(D61))","v":30}]
["**Website Destination URL\nDestination URL that you want to promote. "]
["**Display link\nWill show a shorter URL. MUST have same domain as Website Destination URL."]
["**Call To Action 1                          \nPlease select one from the drop-down menu at right",null,"Select in drop down menu",null,null,null,null,null,null,"*Any option may be used as the CTA in the ad, with any Post Text, Headline, or Newsfeed Link Description"]
["**Call To Action 2 (Optional)              \nPlease select one from the drop-down menu at right",null,"Select in drop down menu"]
["**Call To Action 3 (Optional)              \nPlease select one from the drop-down menu at right",null,"Select in drop down menu"]
["**Call To Action 4 (Optional)              \nPlease select one from the drop-down menu at right",null,"Select in drop down menu"]
["**Call To Action 5 (Optional)              \nPlease select one from the drop-down menu at right",null,"Select in drop down menu"]

{"sheet":"Offers","index":6,"n_rows":137,"n_cols":9,"rows_kept":137,"cut":false,"hidden":false,"merged":[[25,0,25,1],[25,3,25,7],[8,3,8,7],[9,0,10,1],[9,3,17,8],[14,0,18,1],[24,4,24,7],[19,3,19,7],[20,3,20,4],[20,5,20,7],[21,3,21,4],[21,5,21,7],[22,3,22,4],[22,5,22,7],[27,3,27,7],[28,0,28,1],[28,3,28,7],[29,0,29,1],[26,0,26,1],[26,3,26,7],[29,3,29,7],[13,10,20,15],[37,0,37,1],[37,3,37,7],[35,0,35,1],[35,3,35,7],[36,0,36,1],[36,3,36,7],[34,0,34,1],[34,3,34,7],[30,0,32,1],[30,2,32,2],[30,3,32,7],[33,0,33,1],[33,3,33,7],[30,8,32,8],[27,0,27,1]]}
[]
[]
[]
[]
[]
[]
[]
["Rules and Regulations"]
["Facebook Ad Guidelines",null,null,"Advertiser Access"]
["Ensure that your ads comply with all applicable laws, statutes, and regulations.",null,null,"Providing admin is a standard process that protects a brand from fraud by assigning an ‘Advertiser’ label to those who manage paid ads on a client’s behalf. As such, Ignite must be given the necessary permission to promote a client's Facebook page. To do so, Ignite will send a request to the specified Facebook Page and the managers of the Page will receive a notification allowing them to ‘accept’ or ‘decline’ this request."]
[]
["Read more here"]
[]
["Text Image Rule"]
["To ensure people only see high-quality content, images in your ads cannot include any text. This includes logos and slogans in images. "]
[]
[]
[]
[null,null,null,"Read more here"]
["Last Updated: 7/23/19",null,null,"Client Advertiser Access: Contact information for reporting "]
[null,null,null,"First Name:",null,"John "]
[null,null,null,"Last Name:",null,"Smith"]
[null,null,null,"Email: ",null,"john.smith@example.com"]
["Link Click Campaign - Facebook Offers (this product is only available for link click campaigns)"]
["Section",null,"Required  Specs",null,"Must fill out below fields:",null,null,null,"Remaining Characters"]
["Offer Title \nThis will be the headline for the original ad",null,"50 Characters",null,null,null,null,null,{"$f":"50-LEN(D26)","v":50}]
["Images or Videos\nTell a story using a video or image ",null,"Image:1200x628 pixels (Image ratio: 1.91:1)\nVideo: 1080x1080 pixels\nFile max: 2.3GB\nMP4, MOV files are recommended"]
["Post Text\nEnter text that clearly tells people about what you're promoting",null,"90 Characters",null,null,null,null,null,{"$f":"90-LEN(D28)","v":90}]
["Details \nThis space is where you give more information about your offer.",null,"250 Characters",null,null,null,null,null,{"$f":"250-LEN(D29)","v":250}]
["End Date\nChoose a date between today and one year from now.  This date will be the last day people can use the offer"]
["End Time\nThis is when your offer will expire.  It is based on local time defined by account"]
[]
[]
["Where can people redeem?",null,"Online / In Store / Both","Both"]
["Online Offer URL \nAdd the website URL where people can redeem this offer"]
["Type of Promo code\nYou can add a code to your offer. Choose one code for all people or upload unique code",null,"No Code / One Code / Unique Code","No Code"]
["Total Offers Available\nChoose how many offers will be available. Limit the number of offers if you need to manage inventory or sales costs"]
["Terms and Conditions \nAdd rules and legal info you'd like.  ",null,"5,000 Character Limit",null,null,null,null,null,{"$f":"5000-LEN(D38)","v":5000}]
[]
[]
[]
[]
[]
[]
[]
[]
[]
[]
[]
[]
[]
[]
[]
[]
[]
[]
[]
[]
[]
[]
[]
[]
[]
[]
[]
[]
[]
[]
[]
[]
[]
[]
[]
[]
[]
[]
[]
[]
[]
[]
[]
[]
[]
[]
[]
[]
[]
[]
[]
[]
[]
[]
[]
[]
[]
[]
[]
[]
[]
[]
[]
[]
[]
[]
[]
[]
[]
[]
[]
[]
[]
[]
[]
[]
[]
[]
[]
[]
[]
[]
[]
[]
[]
[]
[]
[]
[]
[]
[]
[]
["Online"]
["In Store"]
["Both "]
[]
["No Code"]
["One Code"]
["Unique Code"]

{"sheet":"Instant Experiences - SB","index":7,"n_rows":58,"n_cols":12,"rows_kept":58,"cut":false,"hidden":false,"merged":[[25,3,25,7],[25,0,25,1],[47,0,47,1],[42,3,42,7],[43,3,43,7],[44,3,44,7],[45,3,45,7],[46,3,46,7],[38,0,38,1],[39,0,39,1],[40,0,40,1],[37,3,37,7],[38,3,38,7],[41,0,41,1],[41,3,41,7],[39,3,39,7],[40,3,40,7],[57,8,57,15],[42,0,42,1],[43,0,43,1],[44,0,44,1],[45,0,45,1],[46,0,46,1],[47,3,47,7],[49,0,49,1],[48,0,48,1],[53,4,53,7],[48,3,48,7],[49,3,49,7],[58,8,58,15],[27,4,27,7],[32,4,32,7],[37,0,37,1],[54,0,56,1],[54,2,56,2],[54,3,56,7],[57,0,59,1],[57,2,59,2],[57,3,59,7],[50,4,50,7],[51,0,51,1],[51,3,51,7],[52,0,52,1],[52,3,52,7],[34,0,34,1],[34,3,34,7],[35,0,35,1],[35,3,35,7],[36,0,36,1],[36,3,36,7],[33,0,33,1],[33,3,33,7],[26,0,26,1],[26,3,26,7],[28,0,28,1],[28,3,28,7],[29,0,31,1],[29,2,31,2],[29,3,31,7],[24,0,24,1],[24,3,24,7],[8,3,8,7],[9,0,10,1],[9,3,17,7],[14,0,18,1],[23,4,23,7],[11,16,18,21],[12,9,12,10],[12,11,12,13],[9,9,9,13],[10,9,10,10],[10,11,10,13],[11,9,11,10],[11,11,11,13]]}
[]
[]
[]
[]
[]
[]
[]
["Rules and Regulations"]
["Facebook Ad Guidelines",null,null,"Advertiser Access"]
["Ensure that your ads comply with all applicable laws, statutes, and regulations.",null,null,"Providing admin is a standard process that protects a brand from fraud by assigning an ‘Advertiser’ label to those who manage paid ads on a client’s behalf. As such, Ignite must be given the necessary permission to promote a client's Facebook page. To do so, Ignite will send a request to the specified Facebook Page and the managers of the Page will receive a notification allowing them to ‘accept’ or ‘decline’ this request.",null,null,null,null,null,"Client Advertiser Access: Contact information for reporting "]
[null,null,null,null,null,null,null,null,null,"First Name:",null,"John "]
["Read more here",null,null,null,null,null,null,null,null,"Last Name:",null,"Smith"]
[null,null,null,null,null,null,null,null,null,"Email: ",null,"john.smith@example.com"]
["Text Image Rule"]
["To ensure people only see high-quality content, images in your ads cannot include any text. This includes logos and slogans in images. "]
[]
[]
[]
[null,null,null,"Read more here"]
["Last Updated: 7/23/19"]
[]
[]
["Instant Experiences - Showcase Your Business (must be completed along with either Single Image, Video, Slideshow or Carousel)"]
["1 - Section - Cover Image/Video",null,"Required Specs",null,"Must fill out below fields:"]
["Cover Image/Video\nIntroduce your brand, product or service. You can use an eye-catching video or image, or create a slideshow using up to 10 photos or video stills.",null,"      1:1 Ratio \nPhoto: 1080x1080 pixels \n Video: .mp4, .mov and at least 720 pixels MAX size: 1.75 GB (Max video length: 60 seconds on Instagram and 60 minutes on Facebook)"]
["Are the assets in a clear resolution and in the correct specs?",null,"      1:1 Ratio \nPhoto: 1080x1080 pixels \n Video: .mp4, .mov and at least 720 pixels MAX size: 1.75 GB (Max video length: 60 seconds on Instagram and 60 minutes on Facebook)"]
["Cover Text\nIntroduce your brand, product, or service. ",null,"No limit on text, but will push the rest of the ad down the page."]
["2 - Section - Second Image/Video, Plus Destination URL (Optional)",null,"Required Specs",null,"Must fill out below fields:"]
["Second Image/Video\nIntroduce your brand, product or service. You can use an eye-catching video or image, or create a slideshow using up to 10 photos or video stills.\n",null,"      1:1 Ratio \nPhoto: 1080x1080 pixels \n Video: .mp4, .mov and at least 720 pixels MAX size: 1.75 GB (Max video length: 60 seconds on Instagram and 60 minutes on Facebook)"]
["Destination URL \n(optional)",null,"No limit on text, but will push the rest of the ad down the page."]
[]
[]
["3 - Section - Carousel ads, including destination URLs ",null,"Required Specs",null,"Must fill out below fields:"]
["Carousel Image 1\n(Required)\nUpload 2-8 images to show them in a carousel format. If images are not the same size, they will be cropped to match your first image.",null,"      1:1 Ratio \nPhoto: 1080x1080 pixels \n Video: .mp4, .mov and at least 720 pixels MAX size: 1.75 GB (Max video length: 60 seconds on Instagram and 60 minutes on Facebook)"]
["Destination URL for Carousel Image 1 \n(Optional)"]
["Carousel Image 2 \n(Required)",null,"      1:1 Ratio \nPhoto: 1080x1080 pixels \n Video: .mp4, .mov and at least 720 pixels MAX size: 1.75 GB (Max video length: 60 seconds on Instagram and 60 minutes on Facebook)"]
["Destination URL for Carousel Image 2\n(Optional)"]
["Carousel Image 3\n(Optional)",null,"      1:1 Ratio \nPhoto: 1080x1080 pixels \n Video: .mp4, .mov and at least 720 pixels MAX size: 1.75 GB (Max video length: 60 seconds on Instagram and 60 minutes on Facebook)"]
["Destination URL for Carousel Image 3\n(Optional)"]
["Carousel Image 4\n(Optional)",null,"      1:1 Ratio \nPhoto: 1080x1080 pixels \n Video: .mp4, .mov and at least 720 pixels MAX size: 1.75 GB (Max video length: 60 seconds on Instagram and 60 minutes on Facebook)"]
["Destination URL for Carousel Image 4\n(Optional)"]
["Carousel Image 5\n(Optional)",null,"      1:1 Ratio \nPhoto: 1080x1080 pixels \n Video: .mp4, .mov and at least 720 pixels MAX size: 1.75 GB (Max video length: 60 seconds on Instagram and 60 minutes on Facebook)"]
["Destination URL for Carousel Image 5\n(Optional)"]
["Carousel Image 6\n(Optional)",null,"      1:1 Ratio \nPhoto: 1080x1080 pixels \n Video: .mp4, .mov and at least 720 pixels MAX size: 1.75 GB (Max video length: 60 seconds on Instagram and 60 minutes on Facebook)"]
["Destination URL for Carousel Image 6\n(Optional)"]
["Carousel Image 7\n(Optional)",null,"      1:1 Ratio \nPhoto: 1080x1080 pixels \n Video: .mp4, .mov and at least 720 pixels MAX size: 1.75 GB (Max video length: 60 seconds on Instagram and 60 minutes on Facebook)"]
["Destination URL for Carousel Image 7\n(Optional)"]
["Carousel Image 8\n(Optional)",null,"      1:1 Ratio \nPhoto: 1080x1080 pixels \n Video: .mp4, .mov and at least 720 pixels MAX size: 1.75 GB (Max video length: 60 seconds on Instagram and 60 minutes on Facebook)"]
["Destination URL for Carousel Image 8\n(Optional)"]
["Carousel Text\nAdd descriptive content for people to read while they swipe through your carousel images. ",null,"No limit on text, but will push the rest of the ad down the page."]
["4 - Section - Third / Final Image of Video",null,"Recommended Specs",null,"Must fill out below fields:"]
["Third / Final Image or Video",null,"      1:1 Ratio \nPhoto: 1080x1080 pixels \n Video: .mp4, .mov and at least 720 pixels MAX size: 1.75 GB (Max video length: 60 seconds on Instagram and 60 minutes on Facebook)"]
["Destination URL\n(Optional)",null,"No limit on text, but will push the rest of the ad down the page."]
["5 - Section - Button at Bottom of Canvas",null,"Recommended Specs",null,"Must fill out below fields:"]
["Button Text\nText on button created at bottom of canvas - Gives people an action to take. Write Something",null,"No limit on text but will make the rest of the ad  text larger"]
[]
[]
["Destination URL "]

{"sheet":"Instant Experiences- GNC","index":8,"n_rows":59,"n_cols":12,"rows_kept":59,"cut":false,"hidden":false,"merged":[[25,0,25,1],[25,3,25,7],[58,0,60,1],[58,2,60,2],[58,3,60,7],[45,0,45,1],[45,3,45,7],[55,0,57,1],[55,2,57,2],[55,3,57,7],[49,0,49,1],[49,3,49,7],[50,0,50,1],[50,3,50,7],[51,4,51,7],[52,0,52,1],[58,8,58,15],[59,8,59,15],[32,0,32,1],[53,0,53,1],[53,3,53,7],[54,4,54,7],[46,0,46,1],[46,3,46,7],[47,0,47,1],[47,3,47,7],[48,0,48,1],[48,3,48,7],[43,0,43,1],[43,3,43,7],[44,0,44,1],[44,3,44,7],[52,3,52,7],[40,0,40,1],[40,3,40,7],[41,0,41,1],[41,3,41,7],[42,0,42,1],[42,3,42,7],[37,0,37,1],[37,3,37,7],[38,0,38,1],[38,3,38,7],[39,0,39,1],[39,3,39,7],[36,0,36,1],[36,3,36,7],[26,0,26,1],[26,3,26,7],[27,4,27,7],[28,0,28,1],[28,3,28,7],[29,0,31,1],[29,2,31,2],[29,3,31,7],[33,4,33,7],[34,0,34,1],[34,3,34,7],[35,0,35,1],[35,3,35,7],[32,3,32,7],[24,0,24,1],[24,3,24,7],[8,3,8,7],[9,0,10,1],[9,3,17,7],[14,0,18,1],[23,4,23,7],[11,15,18,20],[12,9,12,10],[12,11,12,13],[9,9,9,13],[10,9,10,10],[10,11,10,13],[11,9,11,10],[11,11,11,13]]}
[]
[]
[]
[]
[]
[]
[]
["Rules and Regulations"]
["Facebook Ad Guidelines",null,null,"Advertiser Access"]
["Ensure that your ads comply with all applicable laws, statutes, and regulations.",null,null,"Providing admin is a standard process that protects a brand from fraud by assigning an ‘Advertiser’ label to those who manage paid ads on a client’s behalf. As such, Ignite must be given the necessary permission to promote a client's Facebook page. To do so, Ignite will send a request to the specified Facebook Page and the managers of the Page will receive a notification allowing them to ‘accept’ or ‘decline’ this request.",null,null,null,null,null,"Client Advertiser Access: Contact information for reporting "]
[null,null,null,null,null,null,null,null,null,"First Name:",null,"John "]
["Read more here",null,null,null,null,null,null,null,null,"Last Name:",null,"Smith"]
[null,null,null,null,null,null,null,null,null,"Email: ",null,"john.smith@example.com"]
["Text Image Rule"]
["To ensure people only see high-quality content, images in your ads cannot include any text. This includes logos and slogans in images. "]
[]
[]
[]
[null,null,null,"Read more here"]
["Last Updated: 7/23/19"]
[]
[]
["Instant Experiences - Get New Customers (must be completed along with either Single Image, Video, Slideshow or Carousel)"]
["1 - Section - Cover Image/Video",null,"Required Specs",null,"Must fill out below fields:"]
["Cover Image/Video\nIntroduce your brand, product or service. You can use an eye-catching video or image, or create a slideshow using up to 10 photos or video stills.",null,"      1:1 Ratio \nPhoto: 1080x1080 pixels \n Video: .mp4, .mov and at least 720 pixels MAX size: 1.75 GB (Max video length: 60 seconds on Instagram and 60 minutes on Facebook)"]
["Are the assets in a clear resolution and in the correct specs?",null,"      1:1 Ratio \nPhoto: 1080x1080 pixels \n Video: .mp4, .mov and at least 720 pixels MAX size: 1.75 GB (Max video length: 60 seconds on Instagram and 60 minutes on Facebook)"]
["Cover Text\nIntroduce your brand, product, or service. ",null,"No limit on text, but will push the rest of the ad down the page."]
["2 - Section - Headline & Body text below cover image, with button and optional button destination URL",null,"Required Specs",null,"Must fill out below fields:"]
["Headline Text \n(Add Context)\n",null,"No limit on text, but will push the rest of the ad down the page."]
["Button Text\nGive people an action to take - Write Something",null,"No Limit but it will make the text larger in the ad"]
[]
[]
["Button Destination URL\n(Optional)"]
["3 - Section - Carousel ads, including destination URLs ",null,"Required Specs",null,"Must fill out below fields:"]
["Carousel Image 1\n(Required)\nUpload 2-8 images to show them in a carousel format. If images are not the same size, they will be cropped to match your first image.",null,"      1:1 Ratio \nPhoto: 1080x1080 pixels \n Video: .mp4, .mov and at least 720 pixels MAX size: 1.75 GB (Max video length: 60 seconds on Instagram and 60 minutes on Facebook)"]
["Destination URL for Carousel Image 1 \n(Optional)"]
["Carousel Image 2 \n(Required)",null,"      1:1 Ratio \nPhoto: 1080x1080 pixels \n Video: .mp4, .mov and at least 720 pixels MAX size: 1.75 GB (Max video length: 60 seconds on Instagram and 60 minutes on Facebook)"]
["Destination URL for Carousel Image 2\n(Optional)"]
["Carousel Image 3\n(Optional)",null,"      1:1 Ratio \nPhoto: 1080x1080 pixels \n Video: .mp4, .mov and at least 720 pixels MAX size: 1.75 GB (Max video length: 60 seconds on Instagram and 60 minutes on Facebook)"]
["Destination URL for Carousel Image 3\n(Optional)"]
["Carousel Image 4\n(Optional)",null,"      1:1 Ratio \nPhoto: 1080x1080 pixels \n Video: .mp4, .mov and at least 720 pixels MAX size: 1.75 GB (Max video length: 60 seconds on Instagram and 60 minutes on Facebook)"]
["Destination URL for Carousel Image 4\n(Optional)"]
["Carousel Image 5\n(Optional)",null,"      1:1 Ratio \nPhoto: 1080x1080 pixels \n Video: .mp4, .mov and at least 720 pixels MAX size: 1.75 GB (Max video length: 60 seconds on Instagram and 60 minutes on Facebook)"]
["Destination URL for Carousel Image 5\n(Optional)"]
["Carousel Image 6\n(Optional)",null,"      1:1 Ratio \nPhoto: 1080x1080 pixels \n Video: .mp4, .mov and at least 720 pixels MAX size: 1.75 GB (Max video length: 60 seconds on Instagram and 60 minutes on Facebook)"]
["Destination URL for Carousel Image 6\n(Optional)"]
["Carousel Image 7\n(Optional)",null,"      1:1 Ratio \nPhoto: 1080x1080 pixels \n Video: .mp4, .mov and at least 720 pixels MAX size: 1.75 GB (Max video length: 60 seconds on Instagram and 60 minutes on Facebook)"]
["Destination URL for Carousel Image 7\n(Optional)"]
["Carousel Image 8\n(Optional)",null,"      1:1 Ratio \nPhoto: 1080x1080 pixels \n Video: .mp4, .mov and at least 720 pixels MAX size: 1.75 GB (Max video length: 60 seconds on Instagram and 60 minutes on Facebook)"]
["Destination URL for Carousel Image 8\n(Optional)"]
["Carousel Text\nAdd descriptive content for people to read while they swipe through your carousel images. ",null,"No limit on text, but will push the rest of the ad down the page."]
["4 - Section - Third / Final Image of Video",null,"Required Specs",null,"Must fill out below fields:"]
["Third / Final Image or Video",null,"      1:1 Ratio \nPhoto: 1080x1080 pixels \n Video: .mp4, .mov and at least 720 pixels MAX size: 1.75 GB (Max video length: 60 seconds on Instagram and 60 minutes on Facebook)"]
["Destination URL\n(Optional)",null,"No limit on text, but will push the rest of the ad down the page."]
["5 - Section - Button at Bottom of Canvas",null,"Required Specs",null,"Must fill out below fields:"]
["Button Text\nText on button created at bottom of canvas - Gives people an action to take. Write Something",null,"No limit on text"]
[]
[]
["Destination URL "]

{"sheet":"Lead Form","index":9,"n_rows":209,"n_cols":9,"rows_kept":209,"cut":false,"hidden":false,"merged":[[26,0,26,8],[31,0,31,1],[31,3,31,7],[27,0,27,1],[27,3,27,7],[8,3,8,7],[9,0,10,1],[9,3,18,8],[15,0,19,1],[20,3,20,7],[21,3,21,4],[21,5,21,7],[22,3,22,4],[22,5,22,7],[23,3,23,4],[23,5,23,7],[25,4,25,7],[50,3,50,7],[52,0,52,1],[52,3,52,7],[51,0,51,8],[41,3,41,7],[45,0,45,8],[46,0,46,1],[46,3,46,7],[47,0,47,1],[47,3,47,7],[44,0,44,1],[44,3,44,7],[28,0,28,1],[28,3,28,7],[43,0,43,1],[43,3,43,7],[53,0,53,1],[53,3,53,7],[48,0,48,1],[48,3,48,7],[49,0,49,1],[49,3,49,7],[50,0,50,1],[32,3,32,7],[35,0,35,1],[35,3,35,7],[36,0,38,1],[36,2,38,2],[36,3,38,7],[13,11,20,16],[36,8,38,8],[29,0,29,1],[34,0,34,8],[42,0,42,8],[39,0,39,1],[39,3,39,7],[40,0,40,1],[40,3,40,7],[41,0,41,1],[29,3,29,7],[33,0,33,1],[33,3,33,7],[30,0,30,1],[30,3,30,7],[32,0,32,1]]}
[]
[]
[]
[]
[]
[]
[]
["Rules and Regulations"]
["Facebook Ad Guidelines",null,null,"Advertiser Access"]
["Ensure that your ads comply with all applicable laws, statutes, and regulations.",null,null,"Providing admin is a standard process that protects a brand from fraud by assigning an ‘Advertiser’ label to those who manage paid ads on a client’s behalf. As such, Ignite must be given the necessary permission to promote a client's Facebook page. To do so, Ignite will send a request to the specified Facebook Page and the managers of the Page will receive a notification allowing them to ‘accept’ or ‘decline’ this request."]
[]
["Read more here (Please reference #10)"]
["Lead Gen Terms and Conditions"]
[]
["Text Image Rule"]
["To ensure people only see high-quality content, images in your ads cannot include any text. This includes logos and slogans in images. "]
[]
[]
[]
[null,null,null,"Read more here"]
["Last Updated: 7/23/19",null,null,"Client Advertiser Access: Contact information for reporting "]
[null,null,null,"First Name:",null,"John "]
[null,null,null,"Last Name:",null,"Smith"]
[null,null,null,"Email: ",null,"john.smith@example.com"]
["Lead Form Template ( a single image or video or carousel or slideshow must be completed in additional to the following template)"]
["Section",null,"Required  Specs",null,"Must fill out below fields:",null,null,null,"Remaining Characters"]
["Section 1: Intro "]
["Form Type\nPlease select between higher volume of leads or higher intent of leads",null,null,"Higher Intent"]
["Headline \nBriefly Describe what people will receive",null,"60 Characters",null,null,null,null,null,{"$f":"60-LEN(D29)","v":60}]
["Cover Image\nCan use image from ad or upload separate image.\nMust upload separate image if running video or carousel/slideshow\n",null,"Image:1080x1080 pixels (Image ratio: 1.91:1 to 1:1)"]
["Layout Type\nParagraph or bullets",null,null,"Paragraph"]
["Layout Text (Paragraph)\nEnter text that tells people about your product or service",null,"No Limit"]
["Layout Text (Bullets)\nEnter text that tells people about your product or service",null,"5 bullets Max  / 80 Characters per bullet","• Example\n• Example\n• Example\n• Example\n• Example"]
["**Call To Action                                                                          \nPlease select one from the drop-down menu at right",null,"Select in drop down menu","Get Quote"]
["Section 2: Questions"]
["Headline (Optional)\nYou can customize the headline on the top of questions",null,"No Limit"]
["Standard Question\nWhat information would you like to ask for?",null,"Please Select from screenshot to the tight.  Multiple can be selected (Recommend 3-5)"]
[]
[]
["Custom Questions (Optional)\nRequest additional information with custom form questions",null,"Short Answer / Multiple Choice / Both","None"]
["Short Answer Custom Question (Optional)\nProvide short custom questions with short answer",null,"Questions / Answers\nNo Limit on Questions","Q:\nA:\n\nQ:\nA:"]
["Multiple Choice Custom Questions (Optional)\nProvide short custom multiple choice questions",null,"Questions / Choices\nNo Limit","Q: \nChoices: \n\nQ: \nChoices:"]
["Section 3: Privacy Policy (Advertiser must have a link to their privacy policy on their website)"]
["Link Text\nHyperlink text to privacy page\n",null,"70 Characters",null,null,null,null,null,{"$f":"70-LEN(D44)","v":70}]
["Link URL\nActual link to advertiser privacy page\n",null,"Must be a functioning URL"]
["Section 4: Thank You Screen (You can customize the screen your leads see after they submit the form)"]
["Headline\nHeadline is required for thank you page",null,"60 Characters",null,null,null,null,null,{"$f":"60-LEN(D47)","v":60}]
["Description\nThank page description note",null,"No Character Limit"]
["Button Type\nButton on bottom of thank you page",null,"View Website / Download / Call Business","View Website"]
["Button Text\nButton Text is required for thank you page",null,"60 Characters",null,null,null,null,null,{"$f":"60-LEN(D50)","v":60}]
["Website Link / Phone Number\nPlease select website link or phone number according to Button Type option above",null,"URL or Phone Number"]
["Section 5: Settings"]
["Form Language\nLanguage the audience will see when form is viewed",null,"English is default"]
["Sharing\nRestricted: Only people who are delivered the ad can submit the form.\nOpen: Ad can be shared and any user can submit this form\n*If a user shares the ads and  a friend fills out form, lead will not be given credit but can still be downloaded",null,"Open  / Restricted","Open"]
[]
[]
[]
[]
[]
[]
[]
[]
[]
[]
[]
[]
[]
[]
[]
[]
[]
[]
[]
[]
[]
[]
[]
[]
[]
[]
[]
[]
[]
[]
[]
[]
[]
[]
[]
[]
[]
[]
[]
[]
[]
[]
[]
[]
[]
[]
[]
[]
[]
[]
[]
[]
[]
[]
[]
[]
[]
[]
[]
[]
[]
[]
[]
[]
[]
[]
[]
[]
[]
[]
[]
[]
[]
[]
[]
[]
[]
["Restricted "]
["Open"]
[]
[]
[]
["Online"]
["In Store"]
["Both "]
[]
["No Code"]
["One Code"]
["Unique Code"]
[]
[]
["Paragraph"]
["Bullets"]
[]
["Short Answer"]
["Multiple Choice"]
["Both"]
[]
["View Website"]
["Download"]
["Call Business"]
[]
[]
[]
[]
[]
[]
[]
[]
[]
[]
[]
[]
[]
["Multiple Choice"]
["Short Answer"]
["Both"]
["None"]
[]
[]
[]
[]
[]
[]
[]
[]
["Sign Up"]
["Apply Now"]
["Book Now"]
["Get Offer"]
["Get Quote"]
["Learn More"]
["Subscribe"]
[]
[]
[]
[]
[]
[]
[]
[]
[]
[]
[]
[]
[]
[]
[]
[]
[]
[]
[]
[]
["Higher Intent"]
["Higher Volume "]

{"sheet":"Messenger - Start Conversation ","index":10,"n_rows":68,"n_cols":9,"rows_kept":68,"cut":false,"hidden":false,"merged":[[64,0,64,1],[65,0,65,1],[66,0,66,1],[64,3,64,7],[65,3,65,7],[66,3,66,7],[61,0,61,1],[62,0,62,1],[63,0,63,1],[61,3,61,7],[62,3,62,7],[63,3,63,7],[54,0,54,1],[56,0,56,1],[56,3,56,7],[60,0,60,8],[58,0,58,1],[58,3,58,7],[54,3,54,7],[55,0,55,1],[57,0,57,1],[59,0,59,1],[9,10,12,15],[14,0,18,1],[15,10,22,15],[19,3,19,7],[20,3,20,4],[20,5,20,7],[21,3,21,4],[21,5,21,7],[22,3,22,4],[22,5,22,7],[29,8,30,8],[29,3,30,7],[29,2,30,2],[29,0,30,1],[8,3,8,7],[9,0,10,1],[9,3,17,8],[27,4,27,7],[28,0,28,1],[28,3,28,7],[31,18,34,23],[32,0,32,1],[32,3,32,7],[33,0,35,1],[33,2,35,2],[33,3,35,7],[33,8,35,8],[31,0,31,1],[31,3,31,7],[52,0,52,1],[47,0,47,1],[45,0,45,1],[45,3,45,7],[46,0,46,1],[46,3,46,7],[48,0,48,1],[36,0,36,8],[37,0,37,1],[37,3,37,7],[50,3,50,7],[39,3,39,7],[41,3,41,7],[49,0,49,8],[50,0,50,1],[67,3,67,7],[38,0,38,8],[39,0,39,1],[40,0,40,1],[41,0,41,1],[42,0,42,1],[52,3,52,7],[67,0,67,1],[48,3,48,7],[43,0,43,1],[44,0,44,1],[43,3,43,7],[44,3,44,7],[40,3,40,7],[51,0,51,1],[53,0,53,1]]}
[]
[]
[]
[]
[]
[]
[]
["Rules and Regulations"]
["Facebook Ad Guidelines",null,null,"Advertiser Access"]
["Ensure that your ads comply with all applicable laws, statutes, and regulations.",null,null,"Providing admin is a standard process that protects a brand from fraud by assigning an ‘Advertiser’ label to those who manage paid ads on a client’s behalf. As such, Ignite must be given the necessary permission to promote a client's Facebook page. To do so, Ignite will send a request to the specified Facebook Page and the managers of the Page will receive a notification allowing them to ‘accept’ or ‘decline’ this request."]
[]
["Read more here"]
[]
["Text Image Rule"]
["To ensure people only see high-quality content, images in your ads cannot include any text. This includes logos and slogans in images. "]
[]
[]
[]
[null,null,null,"Read more here"]
["Last Updated: 7/23/19",null,null,"Client Advertiser Access: Contact information for reporting "]
[null,null,null,"First Name:",null,"John "]
[null,null,null,"Last Name:",null,"Smith"]
[null,null,null,"Email: ",null,"john.smith@example.com"]
["Messenger - Start Conversations Template (Must Be Combined with Single Image, Video, or Carousel spec sheet)"]
["Only Available For Link Clicks"]
["1. Suggest topics or questions to start a conversation between User and Page 2. Chat with everyone interested in your ad 3. Reach people most likely to chat"]
[]
["Section",null,"Required Specs",null,"Must fill out below fields:",null,null,null,"Remaining Characters"]
["Messenger Template Name\n",null,"Used for reference purposes only - can be reused in future"]
["Greeting Type \nWelcome people to the conversation",null,"Choose one of the following options "]
[]
["Name of Image or Video (optional)\nAn image or video to open with the opening message text.",null,"1200 x 675 pixels\nRatio: 16:9"]
["URL of Facebook Page\nThe name of your business always shows prominently."]
["Greeting Text (Specify if you want to include first name, last name, or full name)\nWelcome people to the conversation",null,"Recommended: 125 Characters","Hi *First Name*! Please let us know how we can help.",null,null,null,null,{"$f":"125-LEN(D34)","v":73}]
[]
[]
["Section 2 - Customer Actions. Suggest questions or replies for customers to tap, or use a button to send them to your website."]
["Actions Type - 1. Frequently Asked Questions with Automated Responses, 2. Quick Replies - Short replies that people can quickly send to your business. Multiple short replies will display side by side. 3. Buttons - Create one or multiple buttons with text to send users to different landing page URLs, 4. None - Simply opens the Messenger convo with the Greeting text",null,"Must Choose 1 of the 4 options available, cannot combine features of different options"]
["(Optional) Section 3 - Frequently Asked Questions"]
["Frequently Asked Question #1",null,"Example: Is anyone available to chat?",null,null,null,null,null,{"$f":"52-LEN(D40)","v":52}]
["Automated Response (optional) ",null,"Specify if you would like to include customer's first, last, or full name "]
["Frequently Asked Question #2",null,"Example: I'm interested. Can you tell me more?",null,null,null,null,null,{"$f":"52-LEN(D42)","v":52}]
["Automated Response (optional) ",null,"Specify if you would like to include customer's first, last, or full name "]
["Frequently Asked Question #3",null,"Example: Can I learn more about your business?",null,null,null,null,null,{"$f":"52-LEN(D44)","v":52}]
["Automated Response (optional) ",null,"Specify if you would like to include customer's first, last, or full name "]
["Frequently Asked Question #4",null,"Example: Can I learn more about your business?",null,null,null,null,null,{"$f":"52-LEN(D46)","v":52}]
["Automated Response (optional) ",null,"Specify if you would like to include customer's first, last, or full name "]
["Frequently Asked Question #5",null,null,null,null,null,null,null,{"$f":"52-LEN(D48)","v":52}]
["Automated Response (optional) ",null,"Specify if you would like to include customer's first, last, or full name "]
["(Optional) Section 3 - Quick Replies "]
["Quick Reply #1",null,"Example: I'd like to learn more",null,null,null,null,null,{"$f":"58-LEN(D51)","v":58}]
["Automated Response #1 (optional) ",null,"Specify if you would like to include customer's first, last, or full name "]
["Quick Reply #2",null,"Example: I'd like to learn more",null,null,null,null,null,{"$f":"58-LEN(D53)","v":58}]
["Automated Response #2 (optional) ",null,"Specify if you would like to include customer's first, last, or full name "]
["Quick Reply #3",null,"Example: I'd like to learn more",null,null,null,null,null,{"$f":"58-LEN(D55)","v":58}]
["Automated Response #3 (optional) ",null,"Specify if you would like to include customer's first, last, or full name "]
["Quick Reply #4",null,"Example: I'd like to learn more",null,null,null,null,null,{"$f":"58-LEN(D57)","v":58}]
["Automated Response #4 (optional) ",null,"Specify if you would like to include customer's first, last, or full name "]
["Quick Reply #5",null,"Example: I'd like to learn more",null,null,null,null,null,{"$f":"58-LEN(D59)","v":58}]
["Automated Response #5 (optional) ",null,"Specify if you would like to include customer's first, last, or full name "]
["(Optional) Section 3 - CTA Buttons "]
["Button Text #1",null,null,null,null,null,null,null,{"$f":"20-LEN(D62)","v":20}]
["Destination URL #1"]
["Button Text #2",null,null,null,null,null,null,null,{"$f":"20-LEN(D64)","v":20}]
["Destination URL #2"]
["Button Text #3",null,null,null,null,null,null,null,{"$f":"20-LEN(D66)","v":20}]
["Destination URL #3"]
["Call To Action                                                                          \nPlease select one from the drop-down menu at right",null,"**Clicking on call to action will open a Messenger chat between User and Page, instead of driving off-site","Send Message "]

{"sheet":"Dynamic Ads (Catalog) Carousel","index":11,"n_rows":63,"n_cols":9,"rows_kept":63,"cut":false,"hidden":false,"merged":[[36,0,36,1],[36,3,36,7],[32,18,34,23],[32,0,32,1],[32,3,32,7],[33,0,33,1],[33,3,33,7],[34,0,34,1],[34,3,34,7],[35,0,35,1],[27,8,29,8],[31,0,31,1],[31,3,31,7],[30,3,30,7],[24,4,24,7],[25,0,25,1],[25,3,25,7],[27,0,29,1],[27,2,29,2],[27,3,29,7],[26,0,26,1],[30,0,30,1],[20,3,20,4],[20,5,20,7],[21,3,21,4],[21,5,21,7],[22,3,22,4],[22,5,22,7],[19,3,19,7],[8,3,8,7],[9,0,10,1],[9,3,17,8],[11,11,18,16],[14,0,18,1]]}
[]
[]
[]
[]
[]
[]
[]
["Rules and Regulations"]
["Facebook Ad Guidelines",null,null,"Advertiser Access"]
["Ensure that your ads comply with all applicable laws, statutes, and regulations.",null,null,"Providing admin is a standard process that protects a brand from fraud by assigning an ‘Advertiser’ label to those who manage paid ads on a client’s behalf. As such, Ignite must be given the necessary permission to promote a client's Facebook page. To do so, Ignite will send a request to the specified Facebook Page and the managers of the Page will receive a notification allowing them to ‘accept’ or ‘decline’ this request."]
[]
["Read more here"]
[]
["Text Image Rule"]
["To ensure people only see high-quality content, images in your ads cannot include any text. This includes logos and slogans in images. "]
[]
[]
[]
[null,null,null,"Read more here"]
["Last Updated: 8/13/19",null,null,"Client Advertiser Access: Contact information for reporting "]
[null,null,null,"First Name:",null,"John "]
[null,null,null,"Last Name:",null,"Smith"]
[null,null,null,"Email: ",null,"john.smith@example.com"]
["Dynamic Carousel - Link Click"]
["Section",null,"Required Specs",null,"Must fill out below fields:",null,null,null,"Remaining Characters"]
["Name of ad\nUsed for reference purposes only"]
["URL of Facebook Page\nThe name of your business always shows prominently.",null,null,null,null,null,null,null,{"$f":"125-LEN(D27)","v":125}]
["Post Text\nEnter text that clearly tells people about what you're promoting",null,"125 characters",null,null,null,null,null,{"$f":"125-LEN(D28)","v":125}]
[]
[]
["**Advertiser & Ad Account Name "]
["**Vehicle/Product Set Name ",null,"Includes Make, Model, and/or New/Used "]
["**Headline\nChoose a feature of the vehicle to showcase ",null,"Vehicle Title (default), Make, Mileage, Model, Price, etc"]
["**Newsfeed Link Description\nChoose a 2nd feature of the vehicle to showcase ",null,"Vehicle Price (default), Title, Make, Mileage, Model, etc"]
["**See More URL ",null,"Recommend Homepage or New/Used Vehicle page "]
["Display URL \n",null,"Must be the same domain as See More link "]
["**Call To Action                                                                          \nPlease select one from the drop-down menu at right",null,"Select in drop down menu"]
[]
[]
[]
["No Button"]
["Get Quote"]
["Get Showtimes"]
["Listen Now"]
["Request Time"]
["See Menu"]
["Shop Now"]
["Sign Up"]
["Subscribe"]
["Watch More"]
["Learn More"]
["Apply Now"]
["Book Now"]
["Contact Us"]
["Donate Now"]
["Download"]
["Get Offer"]
[]
["No Button"]
["Get Quote"]
["Learn More"]
["Send Message"]
["Shop Now"]

{"sheet":"Sheet1","index":12,"n_rows":11,"n_cols":1,"rows_kept":11,"cut":false,"hidden":true,"merged":[]}
["No Button"]
["Apply Now"]
["Book Now"]
["Contact Us"]
["Download"]
["Learn More"]
["Request Time"]
["See Menu"]
["Shop Now"]
["Sign Up"]
["Watch More"]